Department,Entity,Date of Payment,Expense Type,Expense Area,Supplier,Transaction Number,Amount ,VAT Registration Number
UK Trade and Investment,UK Trade and Investment,04/01/2011 ,Travel and Subsistence UK - International Business Specialists,UK Trade & Investment - International Sectors Group,"Personal Expense, Name Witheld",505084,7.60 ,
UK Trade and Investment,UK Trade and Investment,04/01/2011 ,Event Management - Sector Events - Abroad,UK Trade & Investment - International Sectors Group,BEAM AGENCY LTD,140186,7000.00 ,
UK Trade and Investment,UK Trade and Investment,04/01/2011 ,Basic Grants - SESA Solo Support Scheme,UK Trade & Investment - International Sectors Group,SILVER FOX LTD,140177,1000.00 ,
UK Trade and Investment,UK Trade and Investment,04/01/2011 ,Basic Grants - SESA Solo Support Scheme,UK Trade & Investment - International Sectors Group,21ST CENTURY TECHNOLOGY SOLUTIONS LTD,140178,1000.00 ,
UK Trade and Investment,UK Trade and Investment,04/01/2011 ,Basic Grants - SESA Solo Support Scheme,UK Trade & Investment - International Sectors Group,AM PACKAGING LTD T/A AMP ROSE,140179,1000.00 ,
UK Trade and Investment,UK Trade and Investment,04/01/2011 ,Basic Grants - SESA Solo Support Scheme,UK Trade & Investment - International Sectors Group,HOLROYD INSTRUMENTS LTD,140180,1000.00 ,
UK Trade and Investment,UK Trade and Investment,04/01/2011 ,Basic Grants - SESA Solo Support Scheme,UK Trade & Investment - International Sectors Group,CALEX ELECTRONICS LTD,140181,1000.00 ,
UK Trade and Investment,UK Trade and Investment,04/01/2011 ,Basic Grants - SESA Solo Support Scheme,UK Trade & Investment - International Sectors Group,CARTWRIGHT PICKARD ARCHITECTS LTD,140182,1000.00 ,
UK Trade and Investment,UK Trade and Investment,04/01/2011 ,Basic Grants - SESA Solo Support Scheme,UK Trade & Investment - International Sectors Group,JOSH LILLEY FINE ART LTD,140183,1000.00 ,
UK Trade and Investment,UK Trade and Investment,04/01/2011 ,Basic Grants - SESA Solo Support Scheme,UK Trade & Investment - International Sectors Group,LOCUTIO VOICE TECHNOLOGIES LTD,140184,1000.00 ,
UK Trade and Investment,UK Trade and Investment,04/01/2011 ,Telecommunications - Trade Development Support,UK Trade & Investment - International Group,ACT TELECONFERENCING LTD,140185,45.64 ,581 8927 93
UK Trade and Investment,UK Trade and Investment,05/01/2011 ,Scheme Management Charges - Export Communications Review,UK Trade & Investment - Regional Directorate,THE BRITISH CHAMBERS OF COMMERCE,140015,237.50 ,243180781
UK Trade and Investment,UK Trade and Investment,05/01/2011 ,Scheme Management Charges - International Trade Team Contracting,UK Trade & Investment - Regional Directorate,SGB ASSOCIATES,140198,5346.25 ,N/A
UK Trade and Investment,UK Trade and Investment,05/01/2011 ,Scheme Management Charges - International Trade Team Contracting,UK Trade & Investment - Regional Directorate,SGB ASSOCIATES,140200,6873.75 ,N/A
UK Trade and Investment,UK Trade and Investment,05/01/2011 ,Travel and Subsistence UK - International Trade Team Contracting,UK Trade & Investment - Regional Directorate,SGB ASSOCIATES,140198,658.16 ,N/A
UK Trade and Investment,UK Trade and Investment,05/01/2011 ,Travel and Subsistence UK - International Trade Team Contracting,UK Trade & Investment - Regional Directorate,SGB ASSOCIATES,140200,1246.49 ,N/A
UK Trade and Investment,UK Trade and Investment,05/01/2011 ,Event Management - Inward Investment Events,UK Trade & Investment - Business Group,INSTITUTE OF DIRECTORS,140032,455.00 ,535209948
UK Trade and Investment,UK Trade and Investment,05/01/2011 ,Event Management - Inward Investment Events,UK Trade & Investment - Business Group,INSTITUTE OF DIRECTORS,140032,1226.00 ,535209948
UK Trade and Investment,UK Trade and Investment,05/01/2011 ,Event Management - Inward Investment Events,UK Trade & Investment - Business Group,INSTITUTE OF DIRECTORS,140032,-950.00 ,535209948
UK Trade and Investment,UK Trade and Investment,05/01/2011 ,Printed Publications - Inward Investment Publications,UK Trade & Investment - Business Group,INFORMA UK LTD,139951,2055.00 ,1072954
UK Trade and Investment,UK Trade and Investment,05/01/2011 ,Travel and Subsistence O'seas - Market Visit Scheme,UK Trade & Investment - Regional Directorate,PRO-CURE THERAPEUTICS LTD,140193,665.00 ,
UK Trade and Investment,UK Trade and Investment,05/01/2011 ,Travel and Subsistence O'seas - Passport Development & Events,UK Trade & Investment - Regional Directorate,LEISURE TECHNICAL CONSULTANTS LTD,139957,500.00 ,
UK Trade and Investment,UK Trade and Investment,05/01/2011 ,Printing Costs - Sector Champion,UK Trade & Investment - Business Group,LYRECO UK LTD,140199,65.78 ,
UK Trade and Investment,UK Trade and Investment,05/01/2011 ,Event Management - Sector Events - Abroad,UK Trade & Investment - International Sectors Group,BPI (BRITISH RECORDED MUSIC INDUSTRY) LTD,140201,4500.00 ,
UK Trade and Investment,UK Trade and Investment,05/01/2011 ,Advertising - Trade Marketing Events,UK Trade & Investment - Regional Directorate,ROOM 501 LTD,140205,275.00 ,
UK Trade and Investment,UK Trade and Investment,05/01/2011 ,Other Accomodation costs - Trade Marketing Events,UK Trade & Investment - Regional Directorate,SOVEREIGN OFFICE EQUIPMENT AND COMPANY LTD,140203,158.91 ,369444712
UK Trade and Investment,UK Trade and Investment,05/01/2011 ,Other Accomodation costs - Trade Marketing Events,UK Trade & Investment - Regional Directorate,SOVEREIGN OFFICE EQUIPMENT AND COMPANY LTD,140203,114.42 ,369444712
UK Trade and Investment,UK Trade and Investment,05/01/2011 ,Venue Hire - Trade Marketing Events,UK Trade & Investment - Regional Directorate,SODEXO LTD T/A SODEXO PRESTIGE,140204,435.77 ,
UK Trade and Investment,UK Trade and Investment,05/01/2011 ,Design Services - Trade Marketing Publicity,UK Trade & Investment - Marketing Directorate,WHITEHOUSE MAINWARING DESIGN CONSULTANTS LTD,140081,1630.00 ,
UK Trade and Investment,UK Trade and Investment,05/01/2011 ,Basic Grants - Trade Show Access Programme,UK Trade & Investment - International Sectors Group,ENERGY INDUSTRIES COUNCIL,140150,14000.00 ,235882637
UK Trade and Investment,UK Trade and Investment,05/01/2011 ,Sponsors Grants - Trade Show Access Programme,UK Trade & Investment - International Sectors Group,ENERGY INDUSTRIES COUNCIL,140152,3290.00 ,235882637
UK Trade and Investment,UK Trade and Investment,05/01/2011 ,Video Production Services - UKTI Corporate Marketing,UK Trade & Investment - Marketing Directorate,MICK RAWSON,140194,1480.00 ,
UK Trade and Investment,UK Trade and Investment,05/01/2011 ,Video Production Services - UKTI Corporate Marketing,UK Trade & Investment - Marketing Directorate,MICK RAWSON,140195,757.00 ,
UK Trade and Investment,UK Trade and Investment,06/01/2011 ,Event Management - International Business Specialists,UK Trade & Investment - International Sectors Group,BUSINESS TO BUSINESS EXHIBITIONS LTD,140233,2556.70 ,577 6874 69
UK Trade and Investment,UK Trade and Investment,06/01/2011 ,Rental of Accomodation - International Trade Team Contracting,UK Trade & Investment - Regional Directorate,EAST OF ENGLAND DEVELOPMENT AGENCY (EEDA),140235,4993.75 ,
UK Trade and Investment,UK Trade and Investment,06/01/2011 ,Scheme Management Charges - International Trade Team Contracting,UK Trade & Investment - Regional Directorate,GOLDEN VISION LTD,140209,5581.25 ,883206126
UK Trade and Investment,UK Trade and Investment,06/01/2011 ,Scheme Management Charges - International Trade Team Contracting,UK Trade & Investment - Regional Directorate,GOLDEN VISION LTD,140209,398.56 ,883206126
UK Trade and Investment,UK Trade and Investment,06/01/2011 ,Scheme Management Charges - International Trade Team Contracting,UK Trade & Investment - Regional Directorate,GOLDEN VISION LTD,140214,6157.00 ,883206126
UK Trade and Investment,UK Trade and Investment,06/01/2011 ,Scheme Management Charges - International Trade Team Contracting,UK Trade & Investment - Regional Directorate,GOLDEN VISION LTD,140214,1386.57 ,883206126
UK Trade and Investment,UK Trade and Investment,06/01/2011 ,Scheme Management Charges - International Trade Team Contracting,UK Trade & Investment - Regional Directorate,PROJECT BOX LTD,140216,5517.86 ,
UK Trade and Investment,UK Trade and Investment,06/01/2011 ,Scheme Management Charges - International Trade Team Contracting,UK Trade & Investment - Regional Directorate,PROJECT BOX LTD,140217,5517.86 ,
UK Trade and Investment,UK Trade and Investment,06/01/2011 ,Scheme Management Charges - International Trade Team Contracting,UK Trade & Investment - Regional Directorate,MEDILINK (YORKSHIRE AND HUMBER) LTD,140229,7387.00 ,648238808
UK Trade and Investment,UK Trade and Investment,06/01/2011 ,Scheme Management Charges - International Trade Team Contracting,UK Trade & Investment - Regional Directorate,CHAMBERLINK LTD T/A BUSINESS SUPPORT SOLUTIONS,140232,201640.80 ,
UK Trade and Investment,UK Trade and Investment,06/01/2011 ,Event Management - Inward Investment Events,UK Trade & Investment - Business Group,FOREIGN AND COMMONWEALTH OFFICE (FCO),140196,170.96 ,
UK Trade and Investment,UK Trade and Investment,06/01/2011 ,Travel and Subsistence UK - Inward Investment Events,UK Trade & Investment - Business Group,BEST WESTERN HARDWICK HALL HOTEL,140227,197.99 ,177245740
UK Trade and Investment,UK Trade and Investment,06/01/2011 ,Travel and Subsistence UK - Inward Investment Events,UK Trade & Investment - Business Group,BEST WESTERN HARDWICK HALL HOTEL,140230,197.99 ,177245740
UK Trade and Investment,UK Trade and Investment,06/01/2011 ,Travel and Subsistence UK - Inward Investment Events,UK Trade & Investment - Business Group,BEST WESTERN HARDWICK HALL HOTEL,140231,238.00 ,177245740
UK Trade and Investment,UK Trade and Investment,06/01/2011 ,Travel and Subsistence O'seas - Market Visit Scheme,UK Trade & Investment - Regional Directorate,EGBERT H TAYLOR & CO LTD,140215,750.00 ,
UK Trade and Investment,UK Trade and Investment,06/01/2011 ,Promotional Materials - NINJ Sector Events Abroad,UK Trade & Investment - International Sectors Group,ITINERIS LTD,140207,1116.25 ,
UK Trade and Investment,UK Trade and Investment,06/01/2011 ,Promotional Materials - NINJ Sector Events Abroad,UK Trade & Investment - International Sectors Group,ITINERIS LTD,140208,587.50 ,
UK Trade and Investment,UK Trade and Investment,06/01/2011 ,Authoring and Copywriting Costs - Online,UK Trade & Investment - Marketing Directorate,COI COMMUNICATIONS,140206,2190.00 ,GD 020
UK Trade and Investment,UK Trade and Investment,06/01/2011 ,Scheme Management Charges - Passport Business Development Credits,UK Trade & Investment - Regional Directorate,INFINITI-E LTD,139503,1500.00 ,
UK Trade and Investment,UK Trade and Investment,06/01/2011 ,Scheme Management Charges - Passport Business Development Credits,UK Trade & Investment - Regional Directorate,METABOLICS LTD,140053,1500.00 ,
UK Trade and Investment,UK Trade and Investment,06/01/2011 ,Scheme Management Charges - Passport Business Development Credits,UK Trade & Investment - Regional Directorate,ONLINE SAFETY SOLUTIONS,140055,750.00 ,
UK Trade and Investment,UK Trade and Investment,06/01/2011 ,Scheme Management Charges - Passport Business Development Credits,UK Trade & Investment - Regional Directorate,CHRISTOPHER RAEBURN LTD,140056,1000.00 ,
UK Trade and Investment,UK Trade and Investment,06/01/2011 ,Scheme Management Charges - Passport Business Development Credits,UK Trade & Investment - Regional Directorate,ANNIE BARR ASSOCIATES LTD,140059,1486.44 ,
UK Trade and Investment,UK Trade and Investment,06/01/2011 ,Scheme Management Charges - Passport Business Development Credits,UK Trade & Investment - Regional Directorate,TOUGH TECHNOLOGY PRODUCTS LTD,140060,1110.50 ,
UK Trade and Investment,UK Trade and Investment,06/01/2011 ,Scheme Management Charges - Passport Business Development Credits,UK Trade & Investment - Regional Directorate,PAKAWASTE LTD,140061,340.03 ,
UK Trade and Investment,UK Trade and Investment,06/01/2011 ,Scheme Management Charges - Passport Business Development Credits,UK Trade & Investment - Regional Directorate,BAMBER WATSON ASSOCIATES LTD,140062,97.73 ,
UK Trade and Investment,UK Trade and Investment,06/01/2011 ,Scheme Management Charges - Passport Business Development Credits,UK Trade & Investment - Regional Directorate,UNIQUE AUTOMATION LTD,140157,509.00 ,
UK Trade and Investment,UK Trade and Investment,06/01/2011 ,Scheme Management Charges - Passport Business Development Credits,UK Trade & Investment - Regional Directorate,UNIQUE AUTOMATION LTD,140157,500.00 ,
UK Trade and Investment,UK Trade and Investment,06/01/2011 ,Scheme Management Charges - Passport Business Development Credits,UK Trade & Investment - Regional Directorate,UNIQUE AUTOMATION LTD,140157,134.50 ,
UK Trade and Investment,UK Trade and Investment,06/01/2011 ,Scheme Management Charges - Passport Business Development Credits,UK Trade & Investment - Regional Directorate,HYPHA DISCOVERY LTD,140158,400.00 ,
UK Trade and Investment,UK Trade and Investment,06/01/2011 ,Scheme Management Charges - Passport Business Development Credits,UK Trade & Investment - Regional Directorate,HYPHA DISCOVERY LTD,140158,1003.00 ,
UK Trade and Investment,UK Trade and Investment,06/01/2011 ,Scheme Management Charges - Passport Business Development Credits,UK Trade & Investment - Regional Directorate,HYPHA DISCOVERY LTD,140158,97.00 ,
UK Trade and Investment,UK Trade and Investment,06/01/2011 ,Scheme Management Charges - Passport Business Development Credits,UK Trade & Investment - Regional Directorate,COMMODITIES EXCHANGE LTD,140159,351.64 ,
UK Trade and Investment,UK Trade and Investment,06/01/2011 ,Scheme Management Charges - Passport Business Development Credits,UK Trade & Investment - Regional Directorate,COMMODITIES EXCHANGE LTD,140160,133.71 ,
UK Trade and Investment,UK Trade and Investment,06/01/2011 ,Scheme Management Charges - Passport Business Development Credits,UK Trade & Investment - Regional Directorate,COMMODITIES EXCHANGE LTD,140160,137.03 ,
UK Trade and Investment,UK Trade and Investment,06/01/2011 ,Scheme Management Charges - Passport Business Development Credits,UK Trade & Investment - Regional Directorate,COMMODITIES EXCHANGE LTD,140161,50.00 ,
UK Trade and Investment,UK Trade and Investment,06/01/2011 ,Scheme Management Charges - Passport Business Development Credits,UK Trade & Investment - Regional Directorate,NEUE SCHULE LTD,140162,743.75 ,
UK Trade and Investment,UK Trade and Investment,06/01/2011 ,Scheme Management Charges - Passport Business Development Credits,UK Trade & Investment - Regional Directorate,NEUE SCHULE LTD,140162,687.08 ,
UK Trade and Investment,UK Trade and Investment,06/01/2011 ,Scheme Management Charges - Passport Business Development Credits,UK Trade & Investment - Regional Directorate,OJ-BIO LTD,140163,1449.93 ,
UK Trade and Investment,UK Trade and Investment,06/01/2011 ,Scheme Management Charges - Passport Business Development Credits,UK Trade & Investment - Regional Directorate,ASSURED ENERGY SOLUTIONS LTD,140164,757.35 ,
UK Trade and Investment,UK Trade and Investment,06/01/2011 ,Scheme Management Charges - Passport Business Development Credits,UK Trade & Investment - Regional Directorate,TELLURIUM Q LTD,140167,109.00 ,
UK Trade and Investment,UK Trade and Investment,06/01/2011 ,Scheme Management Charges - Passport Business Development Credits,UK Trade & Investment - Regional Directorate,TELLURIUM Q LTD,140167,333.18 ,
UK Trade and Investment,UK Trade and Investment,06/01/2011 ,Scheme Management Charges - Passport Business Development Credits,UK Trade & Investment - Regional Directorate,PROFESSIONAL DEVELOPMENT INTERNATIONAL,140168,793.78 ,
UK Trade and Investment,UK Trade and Investment,06/01/2011 ,Scheme Management Charges - Passport Business Development Credits,UK Trade & Investment - Regional Directorate,GECKO ARTS & MEDIA,140169,277.35 ,
UK Trade and Investment,UK Trade and Investment,06/01/2011 ,Scheme Management Charges - Passport Business Development Credits,UK Trade & Investment - Regional Directorate,STUARTS INDUSTRIAL FLOORING LTD,140170,520.66 ,
UK Trade and Investment,UK Trade and Investment,06/01/2011 ,Scheme Management Charges - Passport Business Development Credits,UK Trade & Investment - Regional Directorate,STUARTS INDUSTRIAL FLOORING LTD,140170,357.50 ,
UK Trade and Investment,UK Trade and Investment,06/01/2011 ,Scheme Management Charges - Passport Business Development Credits,UK Trade & Investment - Regional Directorate,UNICS (UK) LTD,140171,106.64 ,
UK Trade and Investment,UK Trade and Investment,06/01/2011 ,Scheme Management Charges - Passport Business Development Credits,UK Trade & Investment - Regional Directorate,ADVANCED HYGIENIC CONTRACTING LTD,140172,1500.00 ,
UK Trade and Investment,UK Trade and Investment,06/01/2011 ,Advertising - Passport Development & Events,UK Trade & Investment - Regional Directorate,BUSINESS AND ENTERPRISE NORTH EAST LTD,140228,70.36 ,
UK Trade and Investment,UK Trade and Investment,06/01/2011 ,Event Management - Passport Development & Events,UK Trade & Investment - Regional Directorate,BUSINESS AND ENTERPRISE NORTH EAST LTD,140228,1376.52 ,
UK Trade and Investment,UK Trade and Investment,06/01/2011 ,Scheme Management Charges - Passport Development & Events,UK Trade & Investment - Regional Directorate,RLN EAST LTD,140239,12600.00 ,
UK Trade and Investment,UK Trade and Investment,06/01/2011 ,Travel and Subsistence O'seas - Regional Interchange Scheme,UK Trade & Investment - Regional Directorate,NORTH STAFFORDSHIRE CHAMBER OF COMMERCE AND INDUSTRY,140234,1000.00 ,
UK Trade and Investment,UK Trade and Investment,06/01/2011 ,Design Services - Sector Events - UK,UK Trade & Investment - International Sectors Group,ACUMEN DESIGN CONSULTANCY LTD,140050,112.50 ,843441339
UK Trade and Investment,UK Trade and Investment,06/01/2011 ,Equipment Hire - Trade Marketing Events,UK Trade & Investment - Regional Directorate,MELVILLE EXHIBITION SERVICES LTD,140218,173.49 ,661550053
UK Trade and Investment,UK Trade and Investment,06/01/2011 ,Event Management - Trade Marketing Events,UK Trade & Investment - Regional Directorate,GOLDEN VISION LTD,140213,587.50 ,883206126
UK Trade and Investment,UK Trade and Investment,06/01/2011 ,Stand Construction Costs - Trade Marketing Events,UK Trade & Investment - Marketing Directorate,OCEAN DESIGNS LTD,139763,230.00 ,738701423
UK Trade and Investment,UK Trade and Investment,06/01/2011 ,Stand Construction Costs - Trade Marketing Events,UK Trade & Investment - Marketing Directorate,OCEAN DESIGNS LTD,139765,210.00 ,738701423
UK Trade and Investment,UK Trade and Investment,06/01/2011 ,Venue Hire - Trade Marketing Events,UK Trade & Investment - Regional Directorate,HERTFORDSHIRE CHAMBER OF COMMERCE AND INDUSTRY,140238,2000.00 ,
UK Trade and Investment,UK Trade and Investment,06/01/2011 ,Telemarketing - Trade Show Access Programme,UK Trade & Investment - International Sectors Group,RIJA GROUP,140210,246.57 ,
UK Trade and Investment,UK Trade and Investment,06/01/2011 ,IT Managed Service Contracts - UKTI Web Services - Hosting and Support,UK Trade & Investment - IT and Finance Group,FUJITSU SERVICES LTD,140220,119830.00 ,576 9836 68
UK Trade and Investment,UK Trade and Investment,06/01/2011 ,IT Managed Service Contracts - UKTI Web Services - Hosting and Support,UK Trade & Investment - IT and Finance Group,FUJITSU SERVICES LTD,140221,33868.00 ,576 9836 68
UK Trade and Investment,UK Trade and Investment,07/01/2011 ,Scheme Management Charges - Attracting Global Entrepreneurs,UK Trade & Investment - Business Group,PERA INNOVATION LTD,140243,99420.76 ,
UK Trade and Investment,UK Trade and Investment,07/01/2011 ,Other IT Services - CBBC,UK Trade & Investment - International Group,S & S DATA LTD,140268,155.40 ,
UK Trade and Investment,UK Trade and Investment,07/01/2011 ,Catering - ,UK Trade & Investment - Defence and Security Organisation,HMS GLOUCESTER,140211,110.93 ,
UK Trade and Investment,UK Trade and Investment,07/01/2011 ,Catering - ,UK Trade & Investment - Defence and Security Organisation,HMS GLOUCESTER,140212,22.50 ,
UK Trade and Investment,UK Trade and Investment,07/01/2011 ,Travel and Subsistence O'seas - International Business Specialists,UK Trade & Investment - International Sectors Group,SCOTT WILSON LTD,140242,5648.35 ,
UK Trade and Investment,UK Trade and Investment,07/01/2011 ,Scheme Management Charges - International Trade Team Contracting,UK Trade & Investment - Regional Directorate,THE REGIONAL FOOD GROUP FOR YORKSHIRE AND HUMBER LTD,140302,3274.03 ,
UK Trade and Investment,UK Trade and Investment,07/01/2011 ,Authoring and Copywriting Costs - Inward Investment Publications,UK Trade & Investment - Marketing Directorate,CREST COMMUNICATIONS (PR) LTD,140257,385.00 ,646902815
UK Trade and Investment,UK Trade and Investment,07/01/2011 ,Authoring and Copywriting Costs - Inward Investment Publications,UK Trade & Investment - Marketing Directorate,CREST COMMUNICATIONS (PR) LTD,140258,120.00 ,646902815
UK Trade and Investment,UK Trade and Investment,07/01/2011 ,Media and Press Services - Inward Investment Publications,UK Trade & Investment - Marketing Directorate,PSPRARE PUBLISHING LTD,140248,7828.00 ,
UK Trade and Investment,UK Trade and Investment,07/01/2011 ,Printed Publications - Inward Investment Publications,UK Trade & Investment - Marketing Directorate,PSPRARE PUBLISHING LTD,140247,39898.50 ,
UK Trade and Investment,UK Trade and Investment,07/01/2011 ,Professional Subscriptions - Inward Investment Publicity,UK Trade & Investment - Marketing Directorate,THE DANISH-UK CHAMBER OF COMMERCE LTD,140284,558.13 ,
UK Trade and Investment,UK Trade and Investment,07/01/2011 ,Video Production Services - Inward Investment Publicity,UK Trade & Investment - Marketing Directorate,CRUZ IT LTD T/A CIT DIGITAL,140246,1200.00 ,
UK Trade and Investment,UK Trade and Investment,07/01/2011 ,Travel and Subsistence O'seas - Market Visit Scheme,UK Trade & Investment - Regional Directorate,ERESPONSE MEDIA LTD,140266,665.00 ,
UK Trade and Investment,UK Trade and Investment,07/01/2011 ,Design Services - NINJ Publicity,UK Trade & Investment - Marketing Directorate,PROMOTIONAL LOGISTICS LTD,140282,5370.00 ,
UK Trade and Investment,UK Trade and Investment,07/01/2011 ,Printing Costs - NINJ Publicity,UK Trade & Investment - Marketing Directorate,PROMOTIONAL LOGISTICS LTD,140282,1923.60 ,
UK Trade and Investment,UK Trade and Investment,07/01/2011 ,Event Management - NINJ Sector Events,UK Trade & Investment - International Sectors Group,VENN GROUP LTD,140223,2499.99 ,
UK Trade and Investment,UK Trade and Investment,07/01/2011 ,Event Management - NINJ Sector Events,UK Trade & Investment - International Sectors Group,VENN GROUP LTD,140225,2499.99 ,
UK Trade and Investment,UK Trade and Investment,07/01/2011 ,Event Management - NINJ Sector Events,UK Trade & Investment - International Sectors Group,INTERNATIONAL BUSINESS EVENTS LTD,140270,55250.00 ,834341247
UK Trade and Investment,UK Trade and Investment,07/01/2011 ,Design Services - Outward missions,UK Trade & Investment - International Sectors Group,ACUMEN DESIGN CONSULTANCY LTD,140241,3084.00 ,843441339
UK Trade and Investment,UK Trade and Investment,07/01/2011 ,Event Management - Outward missions,UK Trade & Investment - International Sectors Group,ADS GROUP LTD,140296,6000.00 ,
UK Trade and Investment,UK Trade and Investment,07/01/2011 ,Event Management - Outward missions,UK Trade & Investment - International Sectors Group,BRANDON HILL COMMUNICATIONS LTD,140303,16842.00 ,
UK Trade and Investment,UK Trade and Investment,07/01/2011 ,Printed Publications - Outward missions,UK Trade & Investment - International Sectors Group,ADS GROUP LTD,140296,867.00 ,
UK Trade and Investment,UK Trade and Investment,07/01/2011 ,Travel and Subsistence O'seas - Passport Development & Events,UK Trade & Investment - Regional Directorate,DEEHURST LTD T/A TRAVELEADS,139630,200.00 ,
UK Trade and Investment,UK Trade and Investment,07/01/2011 ,Travel and Subsistence O'seas - Regional Interchange Scheme,UK Trade & Investment - Regional Directorate,EAST MIDLANDS BUSINESS LTD,140245,1520.87 ,
UK Trade and Investment,UK Trade and Investment,07/01/2011 ,Design Services - Sector Events - Abroad,UK Trade & Investment - International Sectors Group,ACUMEN DESIGN CONSULTANCY LTD,140278,360.00 ,843441339
UK Trade and Investment,UK Trade and Investment,07/01/2011 ,Design Services - Sector Events - Abroad,UK Trade & Investment - International Sectors Group,ACUMEN DESIGN CONSULTANCY LTD,140279,630.00 ,843441339
UK Trade and Investment,UK Trade and Investment,07/01/2011 ,Event Management - Sector Events - Abroad,UK Trade & Investment - International Sectors Group,BRITISH EXPERTISE,140300,6300.00 ,238 7249 36
UK Trade and Investment,UK Trade and Investment,07/01/2011 ,Event Management - Sector Events - Abroad,UK Trade & Investment - International Sectors Group,BRITISH EXPERTISE,140300,4100.00 ,238 7249 36
UK Trade and Investment,UK Trade and Investment,07/01/2011 ,Design Services - Sector Events - UK,UK Trade & Investment - International Sectors Group,ACUMEN DESIGN CONSULTANCY LTD,140276,390.00 ,843441339
UK Trade and Investment,UK Trade and Investment,07/01/2011 ,Design Services - Sector Events - UK,UK Trade & Investment - International Sectors Group,ACUMEN DESIGN CONSULTANCY LTD,140277,420.00 ,843441339
UK Trade and Investment,UK Trade and Investment,07/01/2011 ,Design Services - Sector Events - UK,UK Trade & Investment - International Sectors Group,ACUMEN DESIGN CONSULTANCY LTD,140280,60.00 ,843441339
UK Trade and Investment,UK Trade and Investment,07/01/2011 ,Design Services - Sector Events - UK,UK Trade & Investment - International Sectors Group,ACUMEN DESIGN CONSULTANCY LTD,140281,360.00 ,843441339
UK Trade and Investment,UK Trade and Investment,07/01/2011 ,Event Management - Sector Events - UK,UK Trade & Investment - International Sectors Group,TECHHUB EUROPE LTD,140244,1700.00 ,993 5485 63
UK Trade and Investment,UK Trade and Investment,07/01/2011 ,Event Management - Sector Events - UK,UK Trade & Investment - International Sectors Group,THE GLASGOWS GROUP,140275,12080.75 ,
UK Trade and Investment,UK Trade and Investment,07/01/2011 ,Travel and Subsistence UK - Sector Events - UK,UK Trade & Investment - International Sectors Group,"Personal Expense, Name Witheld",140292,456.77 ,
UK Trade and Investment,UK Trade and Investment,07/01/2011 ,Basic Grants - SESA Solo Support Scheme,UK Trade & Investment - International Sectors Group,ID TITAN LLP,140299,1000.00 ,
UK Trade and Investment,UK Trade and Investment,07/01/2011 ,Basic Grants - SESA Solo Support Scheme,UK Trade & Investment - International Sectors Group,ROTOLIGHT LTD,140301,1000.00 ,
UK Trade and Investment,UK Trade and Investment,07/01/2011 ,Advertising - Trade Marketing Events,UK Trade & Investment - Regional Directorate,BDAILY LTD,140298,100.00 ,
UK Trade and Investment,UK Trade and Investment,07/01/2011 ,Event Management - Trade Marketing Events,UK Trade & Investment - Regional Directorate,THE REGIONAL FOOD GROUP FOR YORKSHIRE AND HUMBER LTD,140302,13671.30 ,
UK Trade and Investment,UK Trade and Investment,07/01/2011 ,Event Management - Trade Marketing Events,UK Trade & Investment - Regional Directorate,THE REGIONAL FOOD GROUP FOR YORKSHIRE AND HUMBER LTD,140302,2375.00 ,
UK Trade and Investment,UK Trade and Investment,07/01/2011 ,Authoring and Copywriting Costs - Trade Marketing Publicity,UK Trade & Investment - Marketing Directorate,KREATIVITY LTD,140260,3510.00 ,
UK Trade and Investment,UK Trade and Investment,07/01/2011 ,Sponsors Grants - UKIBC UK India Business Council,UK Trade & Investment - International Group,UK-INDIA BUSINESS COUNCIL,140269,250000.00 ,503 3323 00
UK Trade and Investment,UK Trade and Investment,07/01/2011 ,"Other IT Services - UKTI Customer Data Standards, Migration and Mining",UK Trade & Investment - IT and Finance Group,S & S DATA LTD,140285,113.07 ,
UK Trade and Investment,UK Trade and Investment,07/01/2011 ,"Other IT Services - UKTI Customer Data Standards, Migration and Mining",UK Trade & Investment - IT and Finance Group,S & S DATA LTD,140287,197.07 ,
UK Trade and Investment,UK Trade and Investment,07/01/2011 ,"Other IT Services - UKTI Customer Data Standards, Migration and Mining",UK Trade & Investment - IT and Finance Group,S & S DATA LTD,140288,77.20 ,
UK Trade and Investment,UK Trade and Investment,07/01/2011 ,"Other IT Services - UKTI Customer Data Standards, Migration and Mining",UK Trade & Investment - IT and Finance Group,S & S DATA LTD,140289,1944.06 ,
UK Trade and Investment,UK Trade and Investment,07/01/2011 ,"Other IT Services - UKTI Customer Data Standards, Migration and Mining",UK Trade & Investment - IT and Finance Group,S & S DATA LTD,140290,1448.48 ,
UK Trade and Investment,UK Trade and Investment,07/01/2011 ,"Other IT Services - UKTI Customer Data Standards, Migration and Mining",UK Trade & Investment - IT and Finance Group,S & S DATA LTD,140291,35.93 ,
UK Trade and Investment,UK Trade and Investment,07/01/2011 ,"Other IT Services - UKTI Customer Data Standards, Migration and Mining",UK Trade & Investment - IT and Finance Group,S & S DATA LTD,140293,130.33 ,
UK Trade and Investment,UK Trade and Investment,07/01/2011 ,"Other IT Services - UKTI Customer Data Standards, Migration and Mining",UK Trade & Investment - IT and Finance Group,S & S DATA LTD,140294,89.25 ,
UK Trade and Investment,UK Trade and Investment,07/01/2011 ,"Other IT Services - UKTI Customer Data Standards, Migration and Mining",UK Trade & Investment - IT and Finance Group,S & S DATA LTD,140295,101.93 ,
UK Trade and Investment,UK Trade and Investment,07/01/2011 ,"Other IT Services - UKTI Customer Data Standards, Migration and Mining",UK Trade & Investment - IT and Finance Group,S & S DATA LTD,140297,62.12 ,
UK Trade and Investment,UK Trade and Investment,10/01/2011 ,Development Cost - Website (AUC) - Clearing Account - Balance Sheet,UK Trade & Investment - IT and Finance Group,MICHAEL PAGE INTERNATIONAL RECRUITMENT LTD,139787,3041.84 ,354259936
UK Trade and Investment,UK Trade and Investment,10/01/2011 ,Development Cost - Website (AUC) - Clearing Account - Balance Sheet,UK Trade & Investment - IT and Finance Group,MICHAEL PAGE INTERNATIONAL RECRUITMENT LTD,140240,3041.84 ,354259936
UK Trade and Investment,UK Trade and Investment,10/01/2011 ,Scheme Management Charges - Export Communications Review,UK Trade & Investment - Regional Directorate,THE BRITISH CHAMBERS OF COMMERCE,140324,237.50 ,243180781
UK Trade and Investment,UK Trade and Investment,10/01/2011 ,Scheme Management Charges - International Trade Team Contracting,UK Trade & Investment - Regional Directorate,EAST MIDLANDS BUSINESS LTD,140323,52119.00 ,
UK Trade and Investment,UK Trade and Investment,10/01/2011 ,Scheme Management Charges - International Trade Team Contracting,UK Trade & Investment - Regional Directorate,EAST MIDLANDS BUSINESS LTD,140323,105283.00 ,
UK Trade and Investment,UK Trade and Investment,10/01/2011 ,Media and Press Services - Inward Investment Publicity,UK Trade & Investment - Marketing Directorate,FARRAR MEDIA INTERNATIONAL LTD,140311,10833.33 ,
UK Trade and Investment,UK Trade and Investment,10/01/2011 ,Printing Costs - Inward Investment Publicity,UK Trade & Investment - Marketing Directorate,ACUMEN DESIGN CONSULTANCY LTD,140273,2332.00 ,843441339
UK Trade and Investment,UK Trade and Investment,10/01/2011 ,Research and Development Costs - Inward Investment Research,UK Trade & Investment - Business Group,S & S DATA LTD,140267,243.95 ,
UK Trade and Investment,UK Trade and Investment,10/01/2011 ,Travel and Subsistence O'seas - Market Visit Scheme,UK Trade & Investment - Regional Directorate,STRATEGIC SITES LTD,140308,575.00 ,
UK Trade and Investment,UK Trade and Investment,10/01/2011 ,Travel and Subsistence O'seas - Market Visit Scheme,UK Trade & Investment - Regional Directorate,KAPOK (1988) LTD,140309,200.00 ,
UK Trade and Investment,UK Trade and Investment,10/01/2011 ,Travel and Subsistence O'seas - Market Visit Scheme,UK Trade & Investment - Regional Directorate,KAPOK (1988) LTD,140309,40.00 ,
UK Trade and Investment,UK Trade and Investment,10/01/2011 ,Travel and Subsistence O'seas - Market Visit Scheme,UK Trade & Investment - Regional Directorate,THE WORKS THE COMPLETE DESIGN FACILITY LTD,140321,800.00 ,
UK Trade and Investment,UK Trade and Investment,10/01/2011 ,Travel and Subsistence O'seas - Market Visit Scheme,UK Trade & Investment - Regional Directorate,TM STEELS LTD,140325,600.00 ,
UK Trade and Investment,UK Trade and Investment,10/01/2011 ,Travel and Subsistence O'seas - Market Visit Scheme,UK Trade & Investment - Regional Directorate,WELLHOUSE LEISURE LTD,140326,930.00 ,804877025
UK Trade and Investment,UK Trade and Investment,10/01/2011 ,Travel and Subsistence O'seas - Market Visit Scheme,UK Trade & Investment - Regional Directorate,YORKSHIRE TRAINING ACADEMY LTD,140328,260.00 ,
UK Trade and Investment,UK Trade and Investment,10/01/2011 ,Travel and Subsistence O'seas - Market Visit Scheme,UK Trade & Investment - Regional Directorate,GERARD FORLIN QC,140330,700.00 ,
UK Trade and Investment,UK Trade and Investment,10/01/2011 ,Authoring and Copywriting Costs - NINJ Publicity,UK Trade & Investment - Marketing Directorate,ELLIOT FRANKAL,140306,350.00 ,
UK Trade and Investment,UK Trade and Investment,10/01/2011 ,Travel and Subsistence O'seas - Passport Development & Events,UK Trade & Investment - Regional Directorate,GRP ROOFING LTD,140331,500.00 ,
UK Trade and Investment,UK Trade and Investment,10/01/2011 ,Event Management - Post Challenge Fund,UK Trade & Investment - International Sectors Group,BRANDON HILL COMMUNICATIONS LTD,140304,15328.52 ,
UK Trade and Investment,UK Trade and Investment,10/01/2011 ,Printing Costs - R&D Programme Sector Specialists,UK Trade & Investment - International Sectors Group,LYRECO UK LTD,140327,32.89 ,
UK Trade and Investment,UK Trade and Investment,10/01/2011 ,Venue Hire - Trade Marketing Events,UK Trade & Investment - Regional Directorate,MALMAISON,140226,909.09 ,679861955
UK Trade and Investment,UK Trade and Investment,10/01/2011 ,Venue Hire - Trade Marketing Events,UK Trade & Investment - Regional Directorate,MALMAISON,140226,90.91 ,679861955
UK Trade and Investment,UK Trade and Investment,10/01/2011 ,Venue Hire - Trade Marketing Events,UK Trade & Investment - Regional Directorate,ASPIRE LEEDS LTD,140305,3650.00 ,
UK Trade and Investment,UK Trade and Investment,10/01/2011 ,Photographic Services - Trade Marketing Publication,UK Trade & Investment - Marketing Directorate,CRUZ IT LTD T/A CIT DIGITAL,140307,4340.00 ,
UK Trade and Investment,UK Trade and Investment,10/01/2011 ,Video Production Services - Trade Marketing Publication,UK Trade & Investment - Marketing Directorate,MICK RAWSON,140265,8737.17 ,
UK Trade and Investment,UK Trade and Investment,10/01/2011 ,Video Production Services - UKTI Corporate Marketing,UK Trade & Investment - Marketing Directorate,@VOYTEK LTD,140312,6506.18 ,
UK Trade and Investment,UK Trade and Investment,11/01/2011 ,Development Cost - Website (AUC) - Clearing Account - Balance Sheet,UK Trade & Investment - IT and Finance Group,MICHAEL PAGE INTERNATIONAL RECRUITMENT LTD,140340,3041.84 ,354259936
UK Trade and Investment,UK Trade and Investment,11/01/2011 ,Catering - ,UK Trade & Investment - Defence and Security Organisation,RAFCTC LTD TRADING COMPANY OF THE ROYAL AIR FORCE CLUB,140274,997.94 ,
UK Trade and Investment,UK Trade and Investment,11/01/2011 ,Rental of Accomodation - ,UK Trade & Investment - Defence and Security Organisation,THE CUMBERLAND GUOMAN LTD,140339,120.00 ,
UK Trade and Investment,UK Trade and Investment,11/01/2011 ,Rental of Accomodation - ,UK Trade & Investment - Defence and Security Organisation,THE CUMBERLAND GUOMAN LTD,140343,270.00 ,
UK Trade and Investment,UK Trade and Investment,11/01/2011 ,Rental of Accomodation - ,UK Trade & Investment - Defence and Security Organisation,THE CUMBERLAND GUOMAN LTD,140344,240.01 ,
UK Trade and Investment,UK Trade and Investment,11/01/2011 ,Research and Development Costs - Economic Monitoring and Evaluation,UK Trade & Investment - Economics and Evaluation,LONDON ECONOMICS LTD,140346,15000.00 ,
UK Trade and Investment,UK Trade and Investment,11/01/2011 ,Research and Development Costs - Economic Monitoring and Evaluation,UK Trade & Investment - Economics and Evaluation,LONDON ECONOMICS LTD,140346,10150.00 ,
UK Trade and Investment,UK Trade and Investment,11/01/2011 ,Printing Costs - International Trade Team Contracting,UK Trade & Investment - Regional Directorate,LYRECO UK LTD,140351,32.89 ,
UK Trade and Investment,UK Trade and Investment,11/01/2011 ,Scheme Management Charges - International Trade Team Contracting,UK Trade & Investment - Regional Directorate,Y & H IDB LTD T/A BUSINESS LINK YORKSHIRE,140341,121240.21 ,
UK Trade and Investment,UK Trade and Investment,11/01/2011 ,Scheme Management Charges - International Trade Team Contracting,UK Trade & Investment - Regional Directorate,Y & H IDB LTD T/A BUSINESS LINK YORKSHIRE,140341,117610.33 ,
UK Trade and Investment,UK Trade and Investment,11/01/2011 ,Scheme Management Charges - International Trade Team Contracting,UK Trade & Investment - Regional Directorate,ONELONDON TRADE AND INVESTMENT LTD,140347,-17346.64 ,
UK Trade and Investment,UK Trade and Investment,11/01/2011 ,Scheme Management Charges - International Trade Team Contracting,UK Trade & Investment - Regional Directorate,ONELONDON TRADE AND INVESTMENT LTD,140348,229169.00 ,
UK Trade and Investment,UK Trade and Investment,11/01/2011 ,Authoring and Copywriting Costs - Inward Investment Publications,UK Trade & Investment - Marketing Directorate,LORRAINE SHAH,140383,225.00 ,869 3640 80
UK Trade and Investment,UK Trade and Investment,11/01/2011 ,Authoring and Copywriting Costs - Inward Investment Publications,UK Trade & Investment - Marketing Directorate,LORRAINE SHAH,140385,13.75 ,869 3640 80
UK Trade and Investment,UK Trade and Investment,11/01/2011 ,Authoring and Copywriting Costs - Inward Investment Publications,UK Trade & Investment - Marketing Directorate,CODEGENT LTD,140397,10300.00 ,
UK Trade and Investment,UK Trade and Investment,11/01/2011 ,Design Services - Inward Investment Publications,UK Trade & Investment - Marketing Directorate,CODEGENT LTD,140350,500.00 ,
UK Trade and Investment,UK Trade and Investment,11/01/2011 ,Media and Press Services - Inward Investment Publicity,UK Trade & Investment - Marketing Directorate,BURSON-MARSTELLER,140264,2731.62 ,
UK Trade and Investment,UK Trade and Investment,11/01/2011 ,Travel and Subsistence O'seas - Market Visit Scheme,UK Trade & Investment - Regional Directorate,LOUGHBOROUGH COLLEGE,140349,450.00 ,
UK Trade and Investment,UK Trade and Investment,11/01/2011 ,Travel and Subsistence O'seas - Market Visit Scheme,UK Trade & Investment - Regional Directorate,BPR MEDICAL LTD,140352,600.00 ,
UK Trade and Investment,UK Trade and Investment,11/01/2011 ,Travel and Subsistence O'seas - Market Visit Scheme,UK Trade & Investment - Regional Directorate,SPIROLL PRECAST SERVICES LTD,140353,750.00 ,
UK Trade and Investment,UK Trade and Investment,11/01/2011 ,Travel and Subsistence O'seas - Market Visit Scheme,UK Trade & Investment - Regional Directorate,EXLEY PUBLICATIONS LTD,140417,650.00 ,288040842
UK Trade and Investment,UK Trade and Investment,11/01/2011 ,Travel and Subsistence O'seas - Market Visit Scheme,UK Trade & Investment - Regional Directorate,CHEMPHARMASERVE LTD,140419,200.00 ,
UK Trade and Investment,UK Trade and Investment,11/01/2011 ,Travel and Subsistence O'seas - Market Visit Scheme,UK Trade & Investment - Regional Directorate,CHEMPHARMASERVE LTD,140419,50.00 ,
UK Trade and Investment,UK Trade and Investment,11/01/2011 ,Event Management - NINJ Sector Events,UK Trade & Investment - International Sectors Group,SHELTON FLEMING ASSOCIATES LTD,140342,7607.57 ,461 5938 28
UK Trade and Investment,UK Trade and Investment,11/01/2011 ,Scheme Management Charges - Passport Business Development Credits,UK Trade & Investment - Regional Directorate,NDI RECOGNITION SYSTEMS LTD,139825,1033.63 ,
UK Trade and Investment,UK Trade and Investment,11/01/2011 ,Scheme Management Charges - Passport Business Development Credits,UK Trade & Investment - Regional Directorate,NDI RECOGNITION SYSTEMS LTD,139825,466.37 ,
UK Trade and Investment,UK Trade and Investment,11/01/2011 ,Scheme Management Charges - Passport Business Development Credits,UK Trade & Investment - Regional Directorate,BTB EXHAUSTS LTD,140052,262.32 ,
UK Trade and Investment,UK Trade and Investment,11/01/2011 ,Scheme Management Charges - Passport Business Development Credits,UK Trade & Investment - Regional Directorate,SMARTDRIVE LTD,140064,1251.05 ,
UK Trade and Investment,UK Trade and Investment,11/01/2011 ,Scheme Management Charges - Passport Business Development Credits,UK Trade & Investment - Regional Directorate,SONAR LINK LTD,140065,665.57 ,
UK Trade and Investment,UK Trade and Investment,11/01/2011 ,Scheme Management Charges - Passport Business Development Credits,UK Trade & Investment - Regional Directorate,FENN TOOL LTD,140153,712.19 ,
UK Trade and Investment,UK Trade and Investment,11/01/2011 ,Scheme Management Charges - Passport Business Development Credits,UK Trade & Investment - Regional Directorate,SPALDINGS LTD,140154,568.63 ,
UK Trade and Investment,UK Trade and Investment,11/01/2011 ,Scheme Management Charges - Passport Business Development Credits,UK Trade & Investment - Regional Directorate,SPRITE MANUFACTURING LTD,140155,15.00 ,
UK Trade and Investment,UK Trade and Investment,11/01/2011 ,Scheme Management Charges - Passport Business Development Credits,UK Trade & Investment - Regional Directorate,SPRITE MANUFACTURING LTD,140156,75.00 ,
UK Trade and Investment,UK Trade and Investment,11/01/2011 ,Scheme Management Charges - Passport Business Development Credits,UK Trade & Investment - Regional Directorate,AMB MARKETING LTD,140165,477.25 ,
UK Trade and Investment,UK Trade and Investment,11/01/2011 ,Scheme Management Charges - Passport Business Development Credits,UK Trade & Investment - Regional Directorate,MARKSMAN DESIGN CONSULTANTS,140166,1217.16 ,658116428
UK Trade and Investment,UK Trade and Investment,11/01/2011 ,Scheme Management Charges - Passport Business Development Credits,UK Trade & Investment - Regional Directorate,CHALLS INTERNATIONAL LTD,140192,108.95 ,
UK Trade and Investment,UK Trade and Investment,11/01/2011 ,Scheme Management Charges - Passport Business Development Credits,UK Trade & Investment - Regional Directorate,CAM TRADE MARKS & IP SERVICES,140197,1392.22 ,
UK Trade and Investment,UK Trade and Investment,11/01/2011 ,Scheme Management Charges - Passport Business Development Credits,UK Trade & Investment - Regional Directorate,LAZARUS MOBILITY LTD,140249,1223.95 ,
UK Trade and Investment,UK Trade and Investment,11/01/2011 ,Scheme Management Charges - Passport Business Development Credits,UK Trade & Investment - Regional Directorate,TECH MUSIC SCHOOLS LTD,140250,1000.00 ,
UK Trade and Investment,UK Trade and Investment,11/01/2011 ,Scheme Management Charges - Passport Business Development Credits,UK Trade & Investment - Regional Directorate,TECH MUSIC SCHOOLS LTD,140250,500.00 ,
UK Trade and Investment,UK Trade and Investment,11/01/2011 ,Scheme Management Charges - Passport Business Development Credits,UK Trade & Investment - Regional Directorate,INSPIRE PEOPLE DEVELOPMENT LLP,140252,1483.06 ,
UK Trade and Investment,UK Trade and Investment,11/01/2011 ,Scheme Management Charges - Passport Business Development Credits,UK Trade & Investment - Regional Directorate,PENNY WALLACE & DAVID TILLY T/A CARE-ABILITY,140254,1500.00 ,
UK Trade and Investment,UK Trade and Investment,11/01/2011 ,Scheme Management Charges - Passport Business Development Credits,UK Trade & Investment - Regional Directorate,SAUNTON GOLF CLUB LTD,140262,997.50 ,
UK Trade and Investment,UK Trade and Investment,11/01/2011 ,Scheme Management Charges - Passport Business Development Credits,UK Trade & Investment - Regional Directorate,CLARK DOOR LTD,140263,967.19 ,
UK Trade and Investment,UK Trade and Investment,11/01/2011 ,Training - General - Passport Development & Events,UK Trade & Investment - Regional Directorate,Y & H IDB LTD T/A BUSINESS LINK YORKSHIRE,140341,4145.26 ,
UK Trade and Investment,UK Trade and Investment,11/01/2011 ,Research & Development - Performance Measurement,UK Trade & Investment - Economics and Evaluation,OMB RESEARCH LTD,140413,17655.60 ,846 9572 73
UK Trade and Investment,UK Trade and Investment,11/01/2011 ,Research & Development - Performance Measurement,UK Trade & Investment - Economics and Evaluation,OMB RESEARCH LTD,140416,4256.00 ,846 9572 73
UK Trade and Investment,UK Trade and Investment,11/01/2011 ,Research & Development - Performance Measurement,UK Trade & Investment - Economics and Evaluation,OMB RESEARCH LTD,140418,12716.70 ,846 9572 73
UK Trade and Investment,UK Trade and Investment,11/01/2011 ,Research & Development - Performance Measurement,UK Trade & Investment - Economics and Evaluation,OMB RESEARCH LTD,140420,17412.00 ,846 9572 73
UK Trade and Investment,UK Trade and Investment,11/01/2011 ,Event Management - Sector Events - UK,UK Trade & Investment - International Sectors Group,"IMAGO @ LOUGHBOROUGH LIMITED T/A IMAGO, THE LINK HOTEL & HOLYWELL PARK",140377,750.00 ,
UK Trade and Investment,UK Trade and Investment,11/01/2011 ,Event Management - Sector Events - UK,UK Trade & Investment - International Sectors Group,"IMAGO @ LOUGHBOROUGH LIMITED T/A IMAGO, THE LINK HOTEL & HOLYWELL PARK",140377,270.00 ,
UK Trade and Investment,UK Trade and Investment,11/01/2011 ,Event Management - Sector Events - UK,UK Trade & Investment - International Sectors Group,THE CHILDREN'S MEDIA CONFERENCE LTD,140405,3700.00 ,
UK Trade and Investment,UK Trade and Investment,11/01/2011 ,Basic Grants - SESA Solo Support Scheme,UK Trade & Investment - International Sectors Group,NJO TECHNOLOGY LTD,140404,1000.00 ,
UK Trade and Investment,UK Trade and Investment,11/01/2011 ,Basic Grants - SESA Solo Support Scheme,UK Trade & Investment - International Sectors Group,ECOWAYS CONSULTING LTD,140407,1000.00 ,
UK Trade and Investment,UK Trade and Investment,11/01/2011 ,Basic Grants - SESA Solo Support Scheme,UK Trade & Investment - International Sectors Group,UNDERWATER LIGHTS LTD,140410,1000.00 ,
UK Trade and Investment,UK Trade and Investment,11/01/2011 ,Sponsorship - Trade Marketing Events,UK Trade & Investment - Regional Directorate,NEWSCO INSIDER LTD,140400,2200.00 ,
UK Trade and Investment,UK Trade and Investment,11/01/2011 ,Stand Construction Costs - Trade Marketing Events,UK Trade & Investment - Regional Directorate,GWE BUSINESS WEST LTD,140336,440.63 ,
UK Trade and Investment,UK Trade and Investment,11/01/2011 ,Media and Press Services - Trade Marketing Publicity,UK Trade & Investment - Marketing Directorate,COI COMMUNICATIONS,140337,1455.83 ,GD 020
UK Trade and Investment,UK Trade and Investment,11/01/2011 ,IT Managed Service Contracts - UKTI Web Sites - Online Market Info Service,UK Trade & Investment - IT and Finance Group,CABLE & WIRELESS COMMUNICATIONS,140237,58944.50 ,232 3037 10
UK Trade and Investment,UK Trade and Investment,12/01/2011 ,Venue Hire - Asia Task Force,UK Trade & Investment - International Group,BELL DESIGN & COMMUNICATIONS LTD,140334,297.12 ,
UK Trade and Investment,UK Trade and Investment,12/01/2011 ,Rental of Accomodation - ,UK Trade & Investment - Defence and Security Organisation,THE CUMBERLAND GUOMAN LTD,140505,120.00 ,
UK Trade and Investment,UK Trade and Investment,12/01/2011 ,Rental of Accomodation - ,UK Trade & Investment - Defence and Security Organisation,THE CUMBERLAND GUOMAN LTD,140507,120.00 ,
UK Trade and Investment,UK Trade and Investment,12/01/2011 ,Rental of Accomodation - ,UK Trade & Investment - Defence and Security Organisation,THE CUMBERLAND GUOMAN LTD,140509,120.00 ,
UK Trade and Investment,UK Trade and Investment,12/01/2011 ,Rental of Accomodation - ,UK Trade & Investment - Defence and Security Organisation,THE CUMBERLAND GUOMAN LTD,140512,118.93 ,
UK Trade and Investment,UK Trade and Investment,12/01/2011 ,Rental of Accomodation - ,UK Trade & Investment - Defence and Security Organisation,THE CUMBERLAND GUOMAN LTD,140512,1.07 ,
UK Trade and Investment,UK Trade and Investment,12/01/2011 ,Scheme Management Charges - ,UK Trade & Investment - Defence and Security Organisation,AFRICAN BUSINESS ACCESS UK LTD,140647,8102.40 ,
UK Trade and Investment,UK Trade and Investment,12/01/2011 ,Venue Hire - ,UK Trade & Investment - Defence and Security Organisation,BAA BUSINESS SUPPORT CENTRE LTD (HEATHROW AIRPORT),140655,2350.00 ,653094731
UK Trade and Investment,UK Trade and Investment,12/01/2011 ,Training - General - Gateway to Global Growth,UK Trade & Investment - Regional Directorate,CITY UNIVERSITY LONDON,139898,1238.00 ,627 5095 28
UK Trade and Investment,UK Trade and Investment,12/01/2011 ,Travel and Subsistence O'seas - Gateway to Global Growth,UK Trade & Investment - Regional Directorate,JAMES LOVE LEGAL LTD,140549,1000.00 ,
UK Trade and Investment,UK Trade and Investment,12/01/2011 ,Travel and Subsistence O'seas - Gateway to Global Growth,UK Trade & Investment - Regional Directorate,VIRTUOSO LEGAL LTD,140554,1000.00 ,
UK Trade and Investment,UK Trade and Investment,12/01/2011 ,Telecommunications - International Business Specialists,UK Trade & Investment - International Sectors Group,"Personal Expense, Name Witheld",505086,6.15 ,
UK Trade and Investment,UK Trade and Investment,12/01/2011 ,Travel and Subsistence UK - International Business Specialists,UK Trade & Investment - International Sectors Group,"Personal Expense, Name Witheld",505085,55.65 ,
UK Trade and Investment,UK Trade and Investment,12/01/2011 ,Travel and Subsistence UK - International Business Specialists,UK Trade & Investment - International Sectors Group,"Personal Expense, Name Witheld",505087,460.85 ,
UK Trade and Investment,UK Trade and Investment,12/01/2011 ,Travel and Subsistence O'seas - Market Visit Scheme,UK Trade & Investment - Regional Directorate,CAMBRIDGE ELECTROLUMINESCENT LTD,140495,750.00 ,
UK Trade and Investment,UK Trade and Investment,12/01/2011 ,Travel and Subsistence O'seas - Market Visit Scheme,UK Trade & Investment - Regional Directorate,SORK LTD T/A GOWISE (UK),140496,200.00 ,
UK Trade and Investment,UK Trade and Investment,12/01/2011 ,Travel and Subsistence O'seas - Market Visit Scheme,UK Trade & Investment - Regional Directorate,TRANSPORT DESIGN INTERNATIONAL LTD,140497,600.00 ,
UK Trade and Investment,UK Trade and Investment,12/01/2011 ,Travel and Subsistence O'seas - Market Visit Scheme,UK Trade & Investment - Regional Directorate,BOOTH & BELL,140511,750.00 ,
UK Trade and Investment,UK Trade and Investment,12/01/2011 ,Travel and Subsistence O'seas - Market Visit Scheme,UK Trade & Investment - Regional Directorate,BOOTH & BELL,140511,50.00 ,
UK Trade and Investment,UK Trade and Investment,12/01/2011 ,Travel and Subsistence O'seas - Market Visit Scheme,UK Trade & Investment - Regional Directorate,C H EVANS & SON,140515,750.00 ,
UK Trade and Investment,UK Trade and Investment,12/01/2011 ,Travel and Subsistence O'seas - Market Visit Scheme,UK Trade & Investment - Regional Directorate,C H EVANS & SON,140515,50.00 ,
UK Trade and Investment,UK Trade and Investment,12/01/2011 ,Travel and Subsistence O'seas - Market Visit Scheme,UK Trade & Investment - Regional Directorate,INPUT VIDEO LTD T/A INPUT MEDIA,140556,600.00 ,
UK Trade and Investment,UK Trade and Investment,12/01/2011 ,Travel and Subsistence O'seas - Market Visit Scheme,UK Trade & Investment - Regional Directorate,ATLAS TRADE FINANCE LTD,140588,795.00 ,
UK Trade and Investment,UK Trade and Investment,12/01/2011 ,Event Management - Outward missions,UK Trade & Investment - International Sectors Group,BRITISH EXPERTISE,139982,6750.00 ,238 7249 36
UK Trade and Investment,UK Trade and Investment,12/01/2011 ,Event Management - Outward missions,UK Trade & Investment - International Sectors Group,BRITISH EXPERTISE,139982,650.00 ,238 7249 36
UK Trade and Investment,UK Trade and Investment,12/01/2011 ,Event Management - Outward missions,UK Trade & Investment - International Sectors Group,BRITISH EXPERTISE,139982,5425.00 ,238 7249 36
UK Trade and Investment,UK Trade and Investment,12/01/2011 ,Event Management - Outward missions,UK Trade & Investment - International Sectors Group,FOREIGN AND COMMONWEALTH OFFICE (FCO),140320,234.53 ,
UK Trade and Investment,UK Trade and Investment,12/01/2011 ,Event Management - Post Challenge Fund,UK Trade & Investment - International Sectors Group,FOREIGN AND COMMONWEALTH OFFICE (FCO),140591,346.72 ,
UK Trade and Investment,UK Trade and Investment,12/01/2011 ,Event Management - Sector Events - Abroad,UK Trade & Investment - International Sectors Group,TRADE FAIR SUPPORT LTD,140259,16496.40 ,
UK Trade and Investment,UK Trade and Investment,12/01/2011 ,Event Management - Sector Events - Abroad,UK Trade & Investment - International Sectors Group,BUSINESS TO BUSINESS EXHIBITIONS LTD,140272,10947.00 ,577 6874 69
UK Trade and Investment,UK Trade and Investment,12/01/2011 ,Event Management - Sector Events - Abroad,UK Trade & Investment - International Sectors Group,BUSINESS TO BUSINESS EXHIBITIONS LTD,140272,2050.00 ,577 6874 69
UK Trade and Investment,UK Trade and Investment,12/01/2011 ,Event Management - Sector Events - Abroad,UK Trade & Investment - International Sectors Group,BUSINESS TO BUSINESS EXHIBITIONS LTD,140272,190.87 ,577 6874 69
UK Trade and Investment,UK Trade and Investment,12/01/2011 ,Event Management - Sector Events - UK,UK Trade & Investment - International Sectors Group,INTERNATIONAL VISUAL COMMUNICATIONS ASSOCIATION [IVCA],140652,3500.00 ,244385358
UK Trade and Investment,UK Trade and Investment,12/01/2011 ,Travel and Subsistence UK - Sector Events - UK,UK Trade & Investment - International Sectors Group,EVENTICA,140561,714.90 ,702 1258 82
UK Trade and Investment,UK Trade and Investment,12/01/2011 ,Travel and Subsistence O'seas - Short Term Business Attachments (STBA),UK Trade & Investment - International Sectors Group,SCOTT WILSON LTD,140544,2355.63 ,
UK Trade and Investment,UK Trade and Investment,12/01/2011 ,Advertising - Trade Marketing Events,UK Trade & Investment - Regional Directorate,RIBA NORTH EAST,140521,200.00 ,
UK Trade and Investment,UK Trade and Investment,12/01/2011 ,Courier Services - Trade Marketing Events,UK Trade & Investment - Regional Directorate,MAIL BOX EXPRESS (LEEDS) LTD,140547,118.17 ,
UK Trade and Investment,UK Trade and Investment,12/01/2011 ,Online Services charges - Trade Marketing Events,UK Trade & Investment - Regional Directorate,THE COMMUNICATOR CORPORATION LTD,140586,43.96 ,
UK Trade and Investment,UK Trade and Investment,12/01/2011 ,Promotional Materials - Trade Marketing Events,UK Trade & Investment - Defence and Security Organisation,AWARE PROMOTIONAL MERCHANDISE LTD,140656,432.00 ,
UK Trade and Investment,UK Trade and Investment,12/01/2011 ,Design Services - Trade Marketing Publicity,UK Trade & Investment - Marketing Directorate,CREATIVEWORKS PARTNERSHIP LLP,140589,1750.00 ,
UK Trade and Investment,UK Trade and Investment,12/01/2011 ,Basic Grants - Trade Show Access Programme,UK Trade & Investment - International Sectors Group,BIRMINGHAM CHAMBER OF COMMERCE & INDUSTRY,140494,8000.00 ,
UK Trade and Investment,UK Trade and Investment,12/01/2011 ,Basic Grants - Trade Show Access Programme,UK Trade & Investment - International Sectors Group,UK FASHION AND TEXTILE ASSOCIATION LTD (UKFT),140562,9000.00 ,340235008
UK Trade and Investment,UK Trade and Investment,12/01/2011 ,Basic Grants - Trade Show Access Programme,UK Trade & Investment - International Sectors Group,VISIT BRITAIN,140564,11000.00 ,446088532
UK Trade and Investment,UK Trade and Investment,12/01/2011 ,Basic Grants - Trade Show Access Programme,UK Trade & Investment - International Sectors Group,MOTORSPORT INDUSTRY ASSOCIATION [MIA],140565,5600.00 ,
UK Trade and Investment,UK Trade and Investment,12/01/2011 ,Basic Grants - Trade Show Access Programme,UK Trade & Investment - International Sectors Group,THE SOCIETY OF MOTOR MANUFACTURERS AND TRADERS LTD INDUSTRY FORUM,140590,4200.00 ,
UK Trade and Investment,UK Trade and Investment,12/01/2011 ,Sponsors Grants - Trade Show Access Programme,UK Trade & Investment - International Sectors Group,BIOPARTNER. CO. UK LTD,140482,16920.00 ,
UK Trade and Investment,UK Trade and Investment,12/01/2011 ,Sponsors Grants - Trade Show Access Programme,UK Trade & Investment - International Sectors Group,BIRMINGHAM CHAMBER OF COMMERCE & INDUSTRY,140491,20501.40 ,
UK Trade and Investment,UK Trade and Investment,12/01/2011 ,Sponsors Grants - Trade Show Access Programme,UK Trade & Investment - International Sectors Group,UK FASHION AND TEXTILE ASSOCIATION LTD (UKFT),140560,19270.00 ,340235008
UK Trade and Investment,UK Trade and Investment,12/01/2011 ,Sponsors Grants - Trade Show Access Programme,UK Trade & Investment - International Sectors Group,VISIT BRITAIN,140563,2585.00 ,446088532
UK Trade and Investment,UK Trade and Investment,12/01/2011 ,Sponsors Grants - Trade Show Access Programme,UK Trade & Investment - International Sectors Group,MOTORSPORT INDUSTRY ASSOCIATION [MIA],140566,940.00 ,
UK Trade and Investment,UK Trade and Investment,12/01/2011 ,Sponsors Grants - Trade Show Access Programme,UK Trade & Investment - International Sectors Group,UK FASHION AND TEXTILE ASSOCIATION LTD (UKFT),140569,6815.00 ,340235008
UK Trade and Investment,UK Trade and Investment,13/01/2011 ,Scheme Management Charges - Global Partnerships,UK Trade & Investment - Business Group,PA CONSULTING GROUP LTD,140740,19801.69 ,238535057
UK Trade and Investment,UK Trade and Investment,13/01/2011 ,Design Services - Inward Investment Publicity,UK Trade & Investment - Marketing Directorate,ACUMEN DESIGN CONSULTANCY LTD,140764,231.00 ,843441339
UK Trade and Investment,UK Trade and Investment,13/01/2011 ,Design Services - Inward Investment Publicity,UK Trade & Investment - Marketing Directorate,ACUMEN DESIGN CONSULTANCY LTD,140765,90.00 ,843441339
UK Trade and Investment,UK Trade and Investment,13/01/2011 ,Design Services - Inward Investment Publicity,UK Trade & Investment - Marketing Directorate,ACUMEN DESIGN CONSULTANCY LTD,140766,180.00 ,843441339
UK Trade and Investment,UK Trade and Investment,13/01/2011 ,Printing Costs - Inward Investment Publicity,UK Trade & Investment - Business Group,LYRECO UK LTD,140751,3.53 ,
UK Trade and Investment,UK Trade and Investment,13/01/2011 ,Travel and Subsistence O'seas - Market Visit Scheme,UK Trade & Investment - Regional Directorate,SPECTRUM HEALTHCARE (UK) LTD,140703,650.00 ,
UK Trade and Investment,UK Trade and Investment,13/01/2011 ,Travel and Subsistence O'seas - Market Visit Scheme,UK Trade & Investment - Regional Directorate,ATKINSON DESIGN ASSOCIATES LTD,140726,650.00 ,
UK Trade and Investment,UK Trade and Investment,13/01/2011 ,Event Management - Outward missions,UK Trade & Investment - International Sectors Group,BRANDON HILL COMMUNICATIONS LTD,140674,7861.25 ,
UK Trade and Investment,UK Trade and Investment,13/01/2011 ,Event Management - Outward missions,UK Trade & Investment - International Sectors Group,SUSTAINABLE ENERGY MARKETING LTD,140677,2332.37 ,
UK Trade and Investment,UK Trade and Investment,13/01/2011 ,Event Management - Outward missions,UK Trade & Investment - International Sectors Group,SUSTAINABLE ENERGY MARKETING LTD,140677,130.83 ,
UK Trade and Investment,UK Trade and Investment,13/01/2011 ,Event Management - Outward missions,UK Trade & Investment - International Sectors Group,SUSTAINABLE ENERGY MARKETING LTD,140684,371.16 ,
UK Trade and Investment,UK Trade and Investment,13/01/2011 ,Scheme Management Charges - Passport Business Development Credits,UK Trade & Investment - Regional Directorate,SOUND THERAPY 4 PETS LTD,140313,1500.00 ,
UK Trade and Investment,UK Trade and Investment,13/01/2011 ,Scheme Management Charges - Passport Business Development Credits,UK Trade & Investment - Regional Directorate,ARCHITECTS DESIGN PARTNERSHIP LLP,140314,194.00 ,
UK Trade and Investment,UK Trade and Investment,13/01/2011 ,Scheme Management Charges - Passport Business Development Credits,UK Trade & Investment - Regional Directorate,HYTEK SALES LTD,140316,197.38 ,
UK Trade and Investment,UK Trade and Investment,13/01/2011 ,Scheme Management Charges - Passport Business Development Credits,UK Trade & Investment - Regional Directorate,PFS (HELSTON) LTD,140317,535.85 ,
UK Trade and Investment,UK Trade and Investment,13/01/2011 ,Scheme Management Charges - Passport Business Development Credits,UK Trade & Investment - Regional Directorate,PFS (HELSTON) LTD,140318,75.00 ,
UK Trade and Investment,UK Trade and Investment,13/01/2011 ,Scheme Management Charges - Passport Business Development Credits,UK Trade & Investment - Regional Directorate,CHILD GRADDON LEWIS LTD,140319,852.00 ,
UK Trade and Investment,UK Trade and Investment,13/01/2011 ,Training - General - Passport Development & Events,UK Trade & Investment - Regional Directorate,COLLINS CONSULTING LTD T/A COLLINS & COLLINS,140706,1846.00 ,
UK Trade and Investment,UK Trade and Investment,13/01/2011 ,Scheme Management Charges - R&D Programme Sector Specialists,UK Trade & Investment - Business Group,PA CONSULTING GROUP LTD,140740,410449.19 ,238535057
UK Trade and Investment,UK Trade and Investment,13/01/2011 ,Design Services - Sector Events - UK,UK Trade & Investment - International Sectors Group,TRMG LTD,140654,150.00 ,
UK Trade and Investment,UK Trade and Investment,13/01/2011 ,Event Management - Sector Events - UK,UK Trade & Investment - International Sectors Group,BRACKEN PRESENTATIONS LTD,140743,6333.33 ,
UK Trade and Investment,UK Trade and Investment,13/01/2011 ,Basic Grants - SESA Solo Support Scheme,UK Trade & Investment - International Sectors Group,ERICA MEAR & TIMOTHY MEAR T/A COMPASS MARINE,140753,1000.00 ,
UK Trade and Investment,UK Trade and Investment,13/01/2011 ,Basic Grants - SESA Solo Support Scheme,UK Trade & Investment - International Sectors Group,KSM ONLINE LTD,140754,1000.00 ,
UK Trade and Investment,UK Trade and Investment,13/01/2011 ,Basic Grants - SESA Solo Support Scheme,UK Trade & Investment - International Sectors Group,LISTGROVE LTD,140756,1000.00 ,
UK Trade and Investment,UK Trade and Investment,13/01/2011 ,Basic Grants - SESA Solo Support Scheme,UK Trade & Investment - International Sectors Group,UTE DECKER,140759,1000.00 ,
UK Trade and Investment,UK Trade and Investment,13/01/2011 ,Basic Grants - SESA Solo Support Scheme,UK Trade & Investment - International Sectors Group,FUTURES (WALES) LTD,140760,1000.00 ,
UK Trade and Investment,UK Trade and Investment,13/01/2011 ,Basic Grants - SESA Solo Support Scheme,UK Trade & Investment - International Sectors Group,TONY LAVERICK CERAMICS,140761,1000.00 ,
UK Trade and Investment,UK Trade and Investment,13/01/2011 ,Basic Grants - SESA Solo Support Scheme,UK Trade & Investment - International Sectors Group,SIMON LEE CHRISTOPHER T/A CHRISTOPHER CRESCENT,140762,1000.00 ,
UK Trade and Investment,UK Trade and Investment,13/01/2011 ,Stand Construction Costs - Trade Marketing Events,UK Trade & Investment - Defence and Security Organisation,EASTERN EXHIBITION SERVICES LTD,140338,3306.80 ,
UK Trade and Investment,UK Trade and Investment,13/01/2011 ,Telecommunications - Trade Marketing Events,UK Trade & Investment - Regional Directorate,THUS LTD,140697,1.19 ,
UK Trade and Investment,UK Trade and Investment,13/01/2011 ,Design Services - Trade Marketing Publication,UK Trade & Investment - Marketing Directorate,ACUMEN DESIGN CONSULTANCY LTD,140763,1296.00 ,843441339
UK Trade and Investment,UK Trade and Investment,13/01/2011 ,Basic Grants - Trade Show Access Programme,UK Trade & Investment - International Sectors Group,BIRMINGHAM CHAMBER OF COMMERCE & INDUSTRY,140722,1000.00 ,
UK Trade and Investment,UK Trade and Investment,13/01/2011 ,Basic Grants - Trade Show Access Programme,UK Trade & Investment - International Sectors Group,ELECTRONIC EXPORTERS GROUP,140724,11000.00 ,
UK Trade and Investment,UK Trade and Investment,13/01/2011 ,Basic Grants - Trade Show Access Programme,UK Trade & Investment - International Sectors Group,BIRMINGHAM CHAMBER OF COMMERCE & INDUSTRY,140748,3000.00 ,
UK Trade and Investment,UK Trade and Investment,13/01/2011 ,Sponsors Grants - Trade Show Access Programme,UK Trade & Investment - International Sectors Group,BIRMINGHAM CHAMBER OF COMMERCE & INDUSTRY,140718,235.00 ,
UK Trade and Investment,UK Trade and Investment,13/01/2011 ,Sponsors Grants - Trade Show Access Programme,UK Trade & Investment - International Sectors Group,ELECTRONIC EXPORTERS GROUP,140725,2585.00 ,
UK Trade and Investment,UK Trade and Investment,13/01/2011 ,Sponsors Grants - Trade Show Access Programme,UK Trade & Investment - International Sectors Group,BRITISH NAVAL EQUIPMENT ASSOCIATION,140741,5875.00 ,
UK Trade and Investment,UK Trade and Investment,13/01/2011 ,Sponsors Grants - Trade Show Access Programme,UK Trade & Investment - International Sectors Group,BIRMINGHAM CHAMBER OF COMMERCE & INDUSTRY,140749,705.00 ,
UK Trade and Investment,UK Trade and Investment,14/01/2011 ,Development Cost - Website (AUC) - Clearing Account - Balance Sheet,UK Trade & Investment - IT and Finance Group,ADECCO UK LTD,140742,867.28 ,232 3479 75
UK Trade and Investment,UK Trade and Investment,14/01/2011 ,Car Hire and Leasing - ,UK Trade & Investment - Defence and Security Organisation,CITYFLEET NETWORKS LTD,140770,27.42 ,
UK Trade and Investment,UK Trade and Investment,14/01/2011 ,Car Hire and Leasing - ,UK Trade & Investment - Defence and Security Organisation,CITYFLEET NETWORKS LTD,140770,105.60 ,
UK Trade and Investment,UK Trade and Investment,14/01/2011 ,Car Hire and Leasing - ,UK Trade & Investment - Defence and Security Organisation,"ABBEY TAXIS LTD (BATH, CHIPPENHAM)",140771,38.60 ,
UK Trade and Investment,UK Trade and Investment,14/01/2011 ,Telecommunications - ,UK Trade & Investment - Defence and Security Organisation,INTERCALL CONFERENCING SERVICES LTD,140758,43.53 ,618212659
UK Trade and Investment,UK Trade and Investment,14/01/2011 ,Scheme Management Charges - Export Communications Review,UK Trade & Investment - Regional Directorate,THE BRITISH CHAMBERS OF COMMERCE,140783,237.50 ,243180781
UK Trade and Investment,UK Trade and Investment,14/01/2011 ,Scheme Management Charges - Export Communications Review,UK Trade & Investment - Regional Directorate,THE BRITISH CHAMBERS OF COMMERCE,140784,250.00 ,243180781
UK Trade and Investment,UK Trade and Investment,14/01/2011 ,Scheme Management Charges - Export Communications Review,UK Trade & Investment - Regional Directorate,THE BRITISH CHAMBERS OF COMMERCE,140785,237.50 ,243180781
UK Trade and Investment,UK Trade and Investment,14/01/2011 ,Travel and Subsistence O'seas - International Business Specialists,UK Trade & Investment - International Sectors Group,"Personal Expense, Name Witheld",505091,3092.63 ,
UK Trade and Investment,UK Trade and Investment,14/01/2011 ,Travel and Subsistence O'seas - International Business Specialists,UK Trade & Investment - International Sectors Group,"Personal Expense, Name Witheld",505092,450.06 ,
UK Trade and Investment,UK Trade and Investment,14/01/2011 ,Travel and Subsistence O'seas - International Business Specialists,UK Trade & Investment - International Sectors Group,"Personal Expense, Name Witheld",505093,1196.64 ,
UK Trade and Investment,UK Trade and Investment,14/01/2011 ,Rental of Accomodation - International Trade Team Contracting,UK Trade & Investment - Regional Directorate,NORTHWEST REGIONAL DEVELOPMENT AGENCY,140822,3600.00 ,764672693
UK Trade and Investment,UK Trade and Investment,14/01/2011 ,Media and Press Services - Inward Investment Publicity,UK Trade & Investment - Marketing Directorate,PRECISE MEDIA MONITORING LTD,140792,1509.10 ,564495605
UK Trade and Investment,UK Trade and Investment,14/01/2011 ,Travel and Subsistence O'seas - Market Visit Scheme,UK Trade & Investment - Regional Directorate,ERNIE FITZPATRICK & CAROL FITZPATRICK T/A FITZPATRICK INTERNATIONAL,140781,995.00 ,
UK Trade and Investment,UK Trade and Investment,14/01/2011 ,Travel and Subsistence O'seas - Market Visit Scheme,UK Trade & Investment - Regional Directorate,FAIRBANK HARDING LTD,140793,575.00 ,
UK Trade and Investment,UK Trade and Investment,14/01/2011 ,Travel and Subsistence O'seas - Market Visit Scheme,UK Trade & Investment - Regional Directorate,FAIRBANK HARDING LTD,140793,140.00 ,
UK Trade and Investment,UK Trade and Investment,14/01/2011 ,Travel and Subsistence O'seas - Market Visit Scheme,UK Trade & Investment - Regional Directorate,EVEREST VENTURE ENTERPRISES LTD,140795,715.00 ,
UK Trade and Investment,UK Trade and Investment,14/01/2011 ,Travel and Subsistence O'seas - Market Visit Scheme,UK Trade & Investment - Regional Directorate,3TC SOFTWARE LTD,140807,500.00 ,
UK Trade and Investment,UK Trade and Investment,14/01/2011 ,Travel and Subsistence O'seas - Market Visit Scheme,UK Trade & Investment - Regional Directorate,STONE CHAMBERS,140808,700.00 ,
UK Trade and Investment,UK Trade and Investment,14/01/2011 ,Travel and Subsistence O'seas - Market Visit Scheme,UK Trade & Investment - Regional Directorate,ALLOCATE SOFTWARE PLC,140819,650.00 ,
UK Trade and Investment,UK Trade and Investment,14/01/2011 ,Travel and Subsistence O'seas - Market Visit Scheme,UK Trade & Investment - Regional Directorate,THREE RAYMOND BUILDINGS LTD,140823,700.00 ,
UK Trade and Investment,UK Trade and Investment,14/01/2011 ,Travel and Subsistence O'seas - Market Visit Scheme,UK Trade & Investment - Regional Directorate,DRIVER CONSULT LTD,140824,650.00 ,
UK Trade and Investment,UK Trade and Investment,14/01/2011 ,Event Management - NINJ Sector Events,UK Trade & Investment - International Sectors Group,THE BELL PARTNERSHIP LTD T/A THE FOUNDRY HOUSE,140744,3250.00 ,
UK Trade and Investment,UK Trade and Investment,14/01/2011 ,Event Management - NINJ Sector Events,UK Trade & Investment - International Sectors Group,THE BELL PARTNERSHIP LTD T/A THE FOUNDRY HOUSE,140744,75.00 ,
UK Trade and Investment,UK Trade and Investment,14/01/2011 ,Bank Charges - Commercial Banks - Overseas Market Introduction Service,UK Trade & Investment - Regional Directorate,DTI OTSS COSTS A\C,140772,3083.60 ,
UK Trade and Investment,UK Trade and Investment,14/01/2011 ,Bank Charges - Commercial Banks - Overseas Market Introduction Service,UK Trade & Investment - Regional Directorate,DTI OTSS COSTS A\C,140772,6.16 ,
UK Trade and Investment,UK Trade and Investment,14/01/2011 ,Bank Charges - Commercial Banks - Overseas Market Introduction Service,UK Trade & Investment - Regional Directorate,DTI OTSS COSTS A\C,140778,16.95 ,
UK Trade and Investment,UK Trade and Investment,14/01/2011 ,Bank Charges - Commercial Banks - Overseas Market Introduction Service,UK Trade & Investment - Regional Directorate,DTI OTSS COSTS A\C,140779,86.54 ,
UK Trade and Investment,UK Trade and Investment,14/01/2011 ,Bank Charges - Commercial Banks - Overseas Market Introduction Service,UK Trade & Investment - Regional Directorate,DTI OTSS COSTS A\C,140780,25.70 ,
UK Trade and Investment,UK Trade and Investment,14/01/2011 ,Event Management - Sector Events - UK,UK Trade & Investment - International Sectors Group,SPORTACCORD,140517,8818.71 ,
UK Trade and Investment,UK Trade and Investment,14/01/2011 ,Event Management - Sector Events - UK,UK Trade & Investment - International Sectors Group,SODEXO PRESTIGE LTD,140818,1337.63 ,561229061
UK Trade and Investment,UK Trade and Investment,14/01/2011 ,Basic Grants - SESA Solo Support Scheme,UK Trade & Investment - International Sectors Group,TEXTHELP SYSTEMS LTD,140773,1000.00 ,
UK Trade and Investment,UK Trade and Investment,14/01/2011 ,Basic Grants - SESA Solo Support Scheme,UK Trade & Investment - International Sectors Group,POLLY EDWARDS LTD,140776,1000.00 ,
UK Trade and Investment,UK Trade and Investment,14/01/2011 ,Event Management - Trade Marketing Events,UK Trade & Investment - Regional Directorate,CAMBRIDGESHIRE CHAMBER OF COMMERCE,140798,300.00 ,214842477
UK Trade and Investment,UK Trade and Investment,14/01/2011 ,Speakers fees - Trade Marketing Events,UK Trade & Investment - Regional Directorate,GLE INVESTMENTS LTD,140796,744.68 ,
UK Trade and Investment,UK Trade and Investment,14/01/2011 ,Stand Construction Costs - Trade Marketing Events,UK Trade & Investment - Marketing Directorate,IIR HOLDINGS LTD,140442,6446.00 ,
UK Trade and Investment,UK Trade and Investment,14/01/2011 ,Stand Construction Costs - Trade Marketing Events,UK Trade & Investment - Regional Directorate,CLEARVIEW IMAGING SERVICES LTD,140811,485.00 ,
UK Trade and Investment,UK Trade and Investment,14/01/2011 ,Stand Construction Costs - Trade Marketing Publication,UK Trade & Investment - Defence and Security Organisation,EDGE EXHIBITION DESIGN LTD,140723,24550.00 ,771 1963 18
UK Trade and Investment,UK Trade and Investment,14/01/2011 ,Basic Grants - Trade Show Access Programme,UK Trade & Investment - International Sectors Group,BIRMINGHAM CHAMBER OF COMMERCE & INDUSTRY,140768,3000.00 ,
UK Trade and Investment,UK Trade and Investment,14/01/2011 ,Basic Grants - Trade Show Access Programme,UK Trade & Investment - International Sectors Group,BIRMINGHAM CHAMBER OF COMMERCE & INDUSTRY,140787,37800.00 ,
UK Trade and Investment,UK Trade and Investment,14/01/2011 ,Basic Grants - Trade Show Access Programme,UK Trade & Investment - International Sectors Group,COMMERCIAL HORTICULTURAL ASSOCIATION,140790,7000.00 ,395138526
UK Trade and Investment,UK Trade and Investment,14/01/2011 ,Basic Grants - Trade Show Access Programme,UK Trade & Investment - International Sectors Group,ELECTRONIC EXPORTERS GROUP,140814,27000.00 ,
UK Trade and Investment,UK Trade and Investment,14/01/2011 ,Basic Grants - Trade Show Access Programme,UK Trade & Investment - International Sectors Group,INTELLECT,140825,30600.00 ,234467656
UK Trade and Investment,UK Trade and Investment,14/01/2011 ,Sponsors Grants - Trade Show Access Programme,UK Trade & Investment - International Sectors Group,BIRMINGHAM CHAMBER OF COMMERCE & INDUSTRY,140769,705.00 ,
UK Trade and Investment,UK Trade and Investment,14/01/2011 ,Sponsors Grants - Trade Show Access Programme,UK Trade & Investment - International Sectors Group,BRITISH EQUESTRIAN TRADE ASSOCIATION,140777,1880.00 ,348443441
UK Trade and Investment,UK Trade and Investment,14/01/2011 ,Sponsors Grants - Trade Show Access Programme,UK Trade & Investment - International Sectors Group,BIRMINGHAM CHAMBER OF COMMERCE & INDUSTRY,140786,12220.00 ,
UK Trade and Investment,UK Trade and Investment,14/01/2011 ,Sponsors Grants - Trade Show Access Programme,UK Trade & Investment - International Sectors Group,COMMERCIAL HORTICULTURAL ASSOCIATION,140789,1175.00 ,395138526
UK Trade and Investment,UK Trade and Investment,14/01/2011 ,Sponsors Grants - Trade Show Access Programme,UK Trade & Investment - International Sectors Group,PS8 LTD,140799,24910.00 ,
UK Trade and Investment,UK Trade and Investment,14/01/2011 ,Sponsors Grants - Trade Show Access Programme,UK Trade & Investment - International Sectors Group,RAILWAY INDUSTRY ASSOCIATION,140800,5875.00 ,239283444
UK Trade and Investment,UK Trade and Investment,14/01/2011 ,Sponsors Grants - Trade Show Access Programme,UK Trade & Investment - International Sectors Group,ELECTRONIC EXPORTERS GROUP,140815,12220.00 ,
UK Trade and Investment,UK Trade and Investment,14/01/2011 ,Sponsors Grants - Trade Show Access Programme,UK Trade & Investment - International Sectors Group,INTELLECT,140826,4080.00 ,234467656
UK Trade and Investment,UK Trade and Investment,17/01/2011 ,Telecommunications - Business Advisory Groups,UK Trade & Investment - International Group,ACT TELECONFERENCING LTD,140739,6.24 ,581 8927 93
UK Trade and Investment,UK Trade and Investment,17/01/2011 ,Rental of Accomodation - ,UK Trade & Investment - Defence and Security Organisation,THE CUMBERLAND GUOMAN LTD,140345,119.99 ,
UK Trade and Investment,UK Trade and Investment,17/01/2011 ,Scheme Management Charges - Gateway to Global Growth,UK Trade & Investment - Regional Directorate,WEST MIDLANDS INTERNATIONAL TRADE LLP,140868,2687.87 ,
UK Trade and Investment,UK Trade and Investment,17/01/2011 ,Training - General - Gateway to Global Growth,UK Trade & Investment - Regional Directorate,CHAMBERLINK LTD T/A BUSINESS SUPPORT SOLUTIONS,140898,2060.00 ,
UK Trade and Investment,UK Trade and Investment,17/01/2011 ,Scheme Management Charges - International Trade Team Contracting,UK Trade & Investment - Regional Directorate,THE REGIONAL FOOD GROUP FOR YORKSHIRE AND HUMBER LTD,140832,3747.95 ,
UK Trade and Investment,UK Trade and Investment,17/01/2011 ,Scheme Management Charges - International Trade Team Contracting,UK Trade & Investment - Regional Directorate,COVENTRY UNIVERSITY ENTERPRISES LTD,140870,5416.00 ,544817233
UK Trade and Investment,UK Trade and Investment,17/01/2011 ,Scheme Management Charges - International Trade Team Contracting,UK Trade & Investment - Regional Directorate,EAST OF ENGLAND IDB LTD,140891,157491.00 ,
UK Trade and Investment,UK Trade and Investment,17/01/2011 ,Travel and Subsistence O'seas - Market Visit Scheme,UK Trade & Investment - Regional Directorate,ALUCAST LTD,140830,550.00 ,
UK Trade and Investment,UK Trade and Investment,17/01/2011 ,Travel and Subsistence O'seas - Market Visit Scheme,UK Trade & Investment - Regional Directorate,NORTH STAFFORDSHIRE CHAMBER OF COMMERCE AND INDUSTRY,140833,120.00 ,
UK Trade and Investment,UK Trade and Investment,17/01/2011 ,Travel and Subsistence O'seas - Market Visit Scheme,UK Trade & Investment - Regional Directorate,NORTH STAFFORDSHIRE CHAMBER OF COMMERCE AND INDUSTRY,140833,500.00 ,
UK Trade and Investment,UK Trade and Investment,17/01/2011 ,Travel and Subsistence O'seas - Market Visit Scheme,UK Trade & Investment - Regional Directorate,SHABBIR MERALI T/A VISATREK IMMIGRATION LAWYERS,140834,260.00 ,
UK Trade and Investment,UK Trade and Investment,17/01/2011 ,Travel and Subsistence O'seas - Market Visit Scheme,UK Trade & Investment - Regional Directorate,NORTH STAFFORDSHIRE CHAMBER OF COMMERCE AND INDUSTRY,140840,200.00 ,
UK Trade and Investment,UK Trade and Investment,17/01/2011 ,Travel and Subsistence O'seas - Market Visit Scheme,UK Trade & Investment - Regional Directorate,TURTLE BAGS LTD,140841,400.00 ,
UK Trade and Investment,UK Trade and Investment,17/01/2011 ,Travel and Subsistence O'seas - Market Visit Scheme,UK Trade & Investment - Regional Directorate,MICROBIAL DEVELOPMENTS LTD,140842,550.00 ,
UK Trade and Investment,UK Trade and Investment,17/01/2011 ,Travel and Subsistence O'seas - Market Visit Scheme,UK Trade & Investment - Regional Directorate,AROQ LTD,140843,600.00 ,
UK Trade and Investment,UK Trade and Investment,17/01/2011 ,Travel and Subsistence O'seas - Market Visit Scheme,UK Trade & Investment - Regional Directorate,NORTH STAFFORDSHIRE CHAMBER OF COMMERCE AND INDUSTRY,140871,600.00 ,
UK Trade and Investment,UK Trade and Investment,17/01/2011 ,Travel and Subsistence O'seas - Market Visit Scheme,UK Trade & Investment - Regional Directorate,NORTH STAFFORDSHIRE CHAMBER OF COMMERCE AND INDUSTRY,140872,600.00 ,
UK Trade and Investment,UK Trade and Investment,17/01/2011 ,Travel and Subsistence O'seas - Market Visit Scheme,UK Trade & Investment - Regional Directorate,ALTO SEATING SYSTEMS LTD,140873,450.00 ,
UK Trade and Investment,UK Trade and Investment,17/01/2011 ,Travel and Subsistence O'seas - Market Visit Scheme,UK Trade & Investment - Regional Directorate,GWE BUSINESS WEST LTD,140886,775.00 ,650 5906 38
UK Trade and Investment,UK Trade and Investment,17/01/2011 ,Travel and Subsistence O'seas - Market Visit Scheme,UK Trade & Investment - Regional Directorate,GWE BUSINESS WEST LTD,140886,660.00 ,650 5906 38
UK Trade and Investment,UK Trade and Investment,17/01/2011 ,Travel and Subsistence O'seas - Market Visit Scheme,UK Trade & Investment - Regional Directorate,GWE BUSINESS WEST LTD,140886,200.00 ,650 5906 38
UK Trade and Investment,UK Trade and Investment,17/01/2011 ,Travel and Subsistence O'seas - Market Visit Scheme,UK Trade & Investment - Regional Directorate,GWE BUSINESS WEST LTD,140886,500.00 ,650 5906 38
UK Trade and Investment,UK Trade and Investment,17/01/2011 ,Travel and Subsistence O'seas - Market Visit Scheme,UK Trade & Investment - Regional Directorate,GWE BUSINESS WEST LTD,140886,600.00 ,650 5906 38
UK Trade and Investment,UK Trade and Investment,17/01/2011 ,Travel and Subsistence O'seas - Market Visit Scheme,UK Trade & Investment - Regional Directorate,PEBBLE LEARNING LTD,140893,750.00 ,
UK Trade and Investment,UK Trade and Investment,17/01/2011 ,Travel and Subsistence O'seas - Market Visit Scheme,UK Trade & Investment - Regional Directorate,W POTTER & SONS (POULTRY) LTD,140894,500.00 ,
UK Trade and Investment,UK Trade and Investment,17/01/2011 ,Travel and Subsistence O'seas - Market Visit Scheme,UK Trade & Investment - Regional Directorate,GWE BUSINESS WEST LTD,140900,500.00 ,
UK Trade and Investment,UK Trade and Investment,17/01/2011 ,Travel and Subsistence O'seas - Market Visit Scheme,UK Trade & Investment - Regional Directorate,GWE BUSINESS WEST LTD,140900,500.00 ,
UK Trade and Investment,UK Trade and Investment,17/01/2011 ,Travel and Subsistence O'seas - Market Visit Scheme,UK Trade & Investment - Regional Directorate,GWE BUSINESS WEST LTD,140900,750.00 ,
UK Trade and Investment,UK Trade and Investment,17/01/2011 ,Travel and Subsistence O'seas - Market Visit Scheme,UK Trade & Investment - Regional Directorate,GWE BUSINESS WEST LTD,140900,750.00 ,
UK Trade and Investment,UK Trade and Investment,17/01/2011 ,Travel and Subsistence O'seas - Market Visit Scheme,UK Trade & Investment - Regional Directorate,GWE BUSINESS WEST LTD,140900,110.00 ,
UK Trade and Investment,UK Trade and Investment,17/01/2011 ,Travel and Subsistence O'seas - Market Visit Scheme,UK Trade & Investment - Regional Directorate,GWE BUSINESS WEST LTD,140900,200.00 ,
UK Trade and Investment,UK Trade and Investment,17/01/2011 ,Travel and Subsistence O'seas - Market Visit Scheme,UK Trade & Investment - Regional Directorate,GWE BUSINESS WEST LTD,140900,200.00 ,
UK Trade and Investment,UK Trade and Investment,17/01/2011 ,Travel and Subsistence O'seas - Market Visit Scheme,UK Trade & Investment - Regional Directorate,GWE BUSINESS WEST LTD,140900,500.00 ,
UK Trade and Investment,UK Trade and Investment,17/01/2011 ,Event Management - NINJ Sector Events,UK Trade & Investment - International Sectors Group,VENN GROUP LTD,140222,1375.44 ,
UK Trade and Investment,UK Trade and Investment,17/01/2011 ,Event Management - NINJ Sector Events,UK Trade & Investment - International Sectors Group,VENN GROUP LTD,140222,1124.55 ,
UK Trade and Investment,UK Trade and Investment,17/01/2011 ,Event Management - NINJ Sector Events,UK Trade & Investment - International Sectors Group,VENN GROUP LTD,140224,2499.99 ,
UK Trade and Investment,UK Trade and Investment,17/01/2011 ,Authoring and Copywriting Costs - Online,UK Trade & Investment - Marketing Directorate,TONY GREENWAY,140874,300.00 ,
UK Trade and Investment,UK Trade and Investment,17/01/2011 ,Scheme Management Charges - Passport Business Development Credits,UK Trade & Investment - Regional Directorate,AA ROBOTICS LTD,139824,1500.00 ,
UK Trade and Investment,UK Trade and Investment,17/01/2011 ,Training - General - Passport Development & Events,UK Trade & Investment - Regional Directorate,WEST MIDLANDS INTERNATIONAL TRADE LLP,140869,7776.28 ,
UK Trade and Investment,UK Trade and Investment,17/01/2011 ,Research & Development - Performance Measurement,UK Trade & Investment - Economics and Evaluation,OMB RESEARCH LTD,140878,2832.10 ,846 9572 73
UK Trade and Investment,UK Trade and Investment,17/01/2011 ,Event Management - Post Challenge Fund,UK Trade & Investment - International Sectors Group,SMMT LTD,140835,1700.00 ,
UK Trade and Investment,UK Trade and Investment,17/01/2011 ,Event Management - Post Challenge Fund,UK Trade & Investment - International Sectors Group,OLIVE CATERING SERVICES LTD,140876,304.40 ,
UK Trade and Investment,UK Trade and Investment,17/01/2011 ,Basic Grants - SESA Solo Support Scheme,UK Trade & Investment - International Sectors Group,MICHAEL J O'BRIEN T/A OBE,140880,1000.00 ,
UK Trade and Investment,UK Trade and Investment,17/01/2011 ,Basic Grants - SESA Solo Support Scheme,UK Trade & Investment - International Sectors Group,OLIVER TWINSAFE VALVES LTD,140882,1000.00 ,
UK Trade and Investment,UK Trade and Investment,17/01/2011 ,Basic Grants - SESA Solo Support Scheme,UK Trade & Investment - International Sectors Group,EAST RIDING FARM SERVICES LTD,140883,1000.00 ,
UK Trade and Investment,UK Trade and Investment,17/01/2011 ,Basic Grants - SESA Solo Support Scheme,UK Trade & Investment - International Sectors Group,APPLEWORLD (UK) LTD,140885,1000.00 ,
UK Trade and Investment,UK Trade and Investment,17/01/2011 ,Basic Grants - SESA Solo Support Scheme,UK Trade & Investment - International Sectors Group,WESTON SM LLP T/A PRO-TECT SAFETY SIGNS,140887,1000.00 ,
UK Trade and Investment,UK Trade and Investment,17/01/2011 ,Basic Grants - SESA Solo Support Scheme,UK Trade & Investment - International Sectors Group,ASSOCIATION OF CERTIFIED PUBLIC ACCOUNTANTS,140888,1000.00 ,
UK Trade and Investment,UK Trade and Investment,17/01/2011 ,Event Management - Trade Development Support,UK Trade & Investment - International Group,HARTLEY BOOTH,140810,1000.00 ,
UK Trade and Investment,UK Trade and Investment,17/01/2011 ,Advertising - Trade Marketing Events,UK Trade & Investment - Regional Directorate,TEN ALPS COMMUNICATIONS LTD T/A TEN ALPS PUBLISHING,140837,650.00 ,480 7229 39
UK Trade and Investment,UK Trade and Investment,17/01/2011 ,Advertising - Trade Marketing Events,UK Trade & Investment - Regional Directorate,GAZETTE MEDIA COMPANY LTD,140896,100.00 ,
UK Trade and Investment,UK Trade and Investment,17/01/2011 ,Design Services - Trade Marketing Events,UK Trade & Investment - Marketing Directorate,CLEARVIEW IMAGING SERVICES LTD,140848,605.00 ,
UK Trade and Investment,UK Trade and Investment,17/01/2011 ,Event Management - Trade Marketing Events,UK Trade & Investment - Regional Directorate,THE REGIONAL FOOD GROUP FOR YORKSHIRE AND HUMBER LTD,140832,2542.19 ,
UK Trade and Investment,UK Trade and Investment,17/01/2011 ,Event Management - Trade Marketing Events,UK Trade & Investment - Regional Directorate,THE REGIONAL FOOD GROUP FOR YORKSHIRE AND HUMBER LTD,140832,802.73 ,
UK Trade and Investment,UK Trade and Investment,17/01/2011 ,Event Management - Trade Marketing Events,UK Trade & Investment - Regional Directorate,THE REGIONAL FOOD GROUP FOR YORKSHIRE AND HUMBER LTD,140838,500.00 ,
UK Trade and Investment,UK Trade and Investment,17/01/2011 ,Online Services charges - Trade Marketing Events,UK Trade & Investment - Marketing Directorate,TOUCHSCREEN SERVICES LTD,140845,795.15 ,
UK Trade and Investment,UK Trade and Investment,17/01/2011 ,Online Services charges - Trade Marketing Events,UK Trade & Investment - Marketing Directorate,INFOAKTIV LTD,140899,117.50 ,
UK Trade and Investment,UK Trade and Investment,17/01/2011 ,Postage costs - Trade Marketing Events,UK Trade & Investment - Regional Directorate,THE NATIONAL EXHIBITION CENTRE,140867,22.29 ,
UK Trade and Investment,UK Trade and Investment,17/01/2011 ,Printing Costs - Trade Marketing Events,UK Trade & Investment - Regional Directorate,ACUMEN DESIGN CONSULTANCY LTD,140831,2321.00 ,843441339
UK Trade and Investment,UK Trade and Investment,17/01/2011 ,Printing Costs - Trade Marketing Events,UK Trade & Investment - Regional Directorate,ACUMEN DESIGN CONSULTANCY LTD,140831,375.00 ,843441339
UK Trade and Investment,UK Trade and Investment,17/01/2011 ,Rental of Accomodation - Trade Marketing Events,UK Trade & Investment - Defence and Security Organisation,THE CUMBERLAND GUOMAN LTD,140345,120.01 ,
UK Trade and Investment,UK Trade and Investment,17/01/2011 ,Stand Construction Costs - Trade Marketing Events,UK Trade & Investment - Marketing Directorate,CLEARVIEW IMAGING SERVICES LTD,140852,12703.50 ,
UK Trade and Investment,UK Trade and Investment,17/01/2011 ,Stand Construction Costs - Trade Marketing Events,UK Trade & Investment - Marketing Directorate,CLEARVIEW IMAGING SERVICES LTD,140854,6070.00 ,
UK Trade and Investment,UK Trade and Investment,17/01/2011 ,Stand Construction Costs - Trade Marketing Events,UK Trade & Investment - Regional Directorate,CLEARVIEW IMAGING SERVICES LTD,140875,485.00 ,
UK Trade and Investment,UK Trade and Investment,17/01/2011 ,Design Services - Trade Marketing Publication,UK Trade & Investment - International Sectors Group,LOW CARBON VEHICLE PARTNERSHIP,140829,1500.00 ,
UK Trade and Investment,UK Trade and Investment,17/01/2011 ,Media and Press Services - Trade Marketing Publicity,UK Trade & Investment - Regional Directorate,COI COMMUNICATIONS,140927,25000.00 ,GD 020
UK Trade and Investment,UK Trade and Investment,17/01/2011 ,Event Management - UKTI Corporate Marketing,UK Trade & Investment - Marketing Directorate,THE ECONOMIST INTELLIGENCE UNIT LTD,140890,73800.00 ,606 1124 87
UK Trade and Investment,UK Trade and Investment,18/01/2011 ,Catering - ,UK Trade & Investment - Defence and Security Organisation,HMS PORTLAND,140930,569.53 ,
UK Trade and Investment,UK Trade and Investment,18/01/2011 ,Scheme Management Charges - Export Communications Review,UK Trade & Investment - Regional Directorate,THE BRITISH CHAMBERS OF COMMERCE,140915,6500.00 ,243180781
UK Trade and Investment,UK Trade and Investment,18/01/2011 ,Scheme Management Charges - Export Communications Review,UK Trade & Investment - Regional Directorate,THE BRITISH CHAMBERS OF COMMERCE,140919,7750.00 ,243180781
UK Trade and Investment,UK Trade and Investment,18/01/2011 ,Scheme Management Charges - Export Communications Review,UK Trade & Investment - Regional Directorate,THE BRITISH CHAMBERS OF COMMERCE,140923,12250.00 ,243180781
UK Trade and Investment,UK Trade and Investment,18/01/2011 ,Scheme Management Charges - Export Market Research Scheme,UK Trade & Investment - Regional Directorate,THE BRITISH CHAMBERS OF COMMERCE,140921,50000.00 ,243180781
UK Trade and Investment,UK Trade and Investment,18/01/2011 ,Scheme Management Charges - Export Market Research Scheme,UK Trade & Investment - Regional Directorate,THE BRITISH CHAMBERS OF COMMERCE,140922,3500.00 ,243180781
UK Trade and Investment,UK Trade and Investment,18/01/2011 ,Scheme Management Charges - Export Market Research Scheme,UK Trade & Investment - Regional Directorate,THE BRITISH CHAMBERS OF COMMERCE,140926,49708.00 ,243180781
UK Trade and Investment,UK Trade and Investment,18/01/2011 ,Scheme Management Charges - International Trade Team Contracting,UK Trade & Investment - Regional Directorate,SOUTH EAST TRADE & INVESTMENT LTD,140913,119374.94 ,
UK Trade and Investment,UK Trade and Investment,18/01/2011 ,Scheme Management Charges - International Trade Team Contracting,UK Trade & Investment - Regional Directorate,SOUTH EAST TRADE & INVESTMENT LTD,140913,21288.33 ,
UK Trade and Investment,UK Trade and Investment,18/01/2011 ,Travel and Subsistence O'seas - Inward Investment Events,UK Trade & Investment - Business Group,ANTHONY NUNN,140895,232.43 ,
UK Trade and Investment,UK Trade and Investment,18/01/2011 ,Travel and Subsistence O'seas - Market Visit Scheme,UK Trade & Investment - Regional Directorate,GWE BUSINESS WEST LTD,140901,600.00 ,
UK Trade and Investment,UK Trade and Investment,18/01/2011 ,Travel and Subsistence O'seas - Market Visit Scheme,UK Trade & Investment - Regional Directorate,GWE BUSINESS WEST LTD,140901,200.00 ,
UK Trade and Investment,UK Trade and Investment,18/01/2011 ,Travel and Subsistence O'seas - Market Visit Scheme,UK Trade & Investment - Regional Directorate,GWE BUSINESS WEST LTD,140901,500.00 ,
UK Trade and Investment,UK Trade and Investment,18/01/2011 ,Travel and Subsistence O'seas - Market Visit Scheme,UK Trade & Investment - Regional Directorate,GWE BUSINESS WEST LTD,140901,500.00 ,
UK Trade and Investment,UK Trade and Investment,18/01/2011 ,Travel and Subsistence O'seas - Market Visit Scheme,UK Trade & Investment - Regional Directorate,GWE BUSINESS WEST LTD,140901,750.00 ,
UK Trade and Investment,UK Trade and Investment,18/01/2011 ,Travel and Subsistence O'seas - Market Visit Scheme,UK Trade & Investment - Regional Directorate,GWE BUSINESS WEST LTD,140901,700.00 ,
UK Trade and Investment,UK Trade and Investment,18/01/2011 ,Travel and Subsistence O'seas - Market Visit Scheme,UK Trade & Investment - Regional Directorate,GWE BUSINESS WEST LTD,140901,750.00 ,
UK Trade and Investment,UK Trade and Investment,18/01/2011 ,Travel and Subsistence O'seas - Market Visit Scheme,UK Trade & Investment - Regional Directorate,GWE BUSINESS WEST LTD,140901,550.00 ,
UK Trade and Investment,UK Trade and Investment,18/01/2011 ,Travel and Subsistence O'seas - Market Visit Scheme,UK Trade & Investment - Regional Directorate,EAST MIDLANDS BUSINESS LTD,140902,600.00 ,
UK Trade and Investment,UK Trade and Investment,18/01/2011 ,Travel and Subsistence O'seas - Market Visit Scheme,UK Trade & Investment - Regional Directorate,GWE BUSINESS WEST LTD,140903,750.00 ,
UK Trade and Investment,UK Trade and Investment,18/01/2011 ,Travel and Subsistence O'seas - Market Visit Scheme,UK Trade & Investment - Regional Directorate,GWE BUSINESS WEST LTD,140903,750.00 ,
UK Trade and Investment,UK Trade and Investment,18/01/2011 ,Travel and Subsistence O'seas - Market Visit Scheme,UK Trade & Investment - Regional Directorate,GWE BUSINESS WEST LTD,140903,200.00 ,
UK Trade and Investment,UK Trade and Investment,18/01/2011 ,Travel and Subsistence O'seas - Market Visit Scheme,UK Trade & Investment - Regional Directorate,GWE BUSINESS WEST LTD,140903,200.00 ,
UK Trade and Investment,UK Trade and Investment,18/01/2011 ,Travel and Subsistence O'seas - Market Visit Scheme,UK Trade & Investment - Regional Directorate,GWE BUSINESS WEST LTD,140903,200.00 ,
UK Trade and Investment,UK Trade and Investment,18/01/2011 ,Travel and Subsistence O'seas - Market Visit Scheme,UK Trade & Investment - Regional Directorate,GWE BUSINESS WEST LTD,140903,450.00 ,
UK Trade and Investment,UK Trade and Investment,18/01/2011 ,Travel and Subsistence O'seas - Market Visit Scheme,UK Trade & Investment - Regional Directorate,GWE BUSINESS WEST LTD,140903,40.00 ,
UK Trade and Investment,UK Trade and Investment,18/01/2011 ,Travel and Subsistence O'seas - Market Visit Scheme,UK Trade & Investment - Regional Directorate,GWE BUSINESS WEST LTD,140903,140.00 ,
UK Trade and Investment,UK Trade and Investment,18/01/2011 ,Travel and Subsistence O'seas - Market Visit Scheme,UK Trade & Investment - Regional Directorate,GWE BUSINESS WEST LTD,140903,450.00 ,
UK Trade and Investment,UK Trade and Investment,18/01/2011 ,Travel and Subsistence O'seas - Market Visit Scheme,UK Trade & Investment - Regional Directorate,GWE BUSINESS WEST LTD,140905,650.00 ,
UK Trade and Investment,UK Trade and Investment,18/01/2011 ,Travel and Subsistence O'seas - Market Visit Scheme,UK Trade & Investment - Regional Directorate,GWE BUSINESS WEST LTD,140905,750.00 ,
UK Trade and Investment,UK Trade and Investment,18/01/2011 ,Travel and Subsistence O'seas - Market Visit Scheme,UK Trade & Investment - Regional Directorate,GWE BUSINESS WEST LTD,140905,550.00 ,
UK Trade and Investment,UK Trade and Investment,18/01/2011 ,Travel and Subsistence O'seas - Market Visit Scheme,UK Trade & Investment - Regional Directorate,GWE BUSINESS WEST LTD,140907,500.00 ,
UK Trade and Investment,UK Trade and Investment,18/01/2011 ,Travel and Subsistence O'seas - Market Visit Scheme,UK Trade & Investment - Regional Directorate,GWE BUSINESS WEST LTD,140907,550.00 ,
UK Trade and Investment,UK Trade and Investment,18/01/2011 ,Travel and Subsistence O'seas - Market Visit Scheme,UK Trade & Investment - Regional Directorate,GWE BUSINESS WEST LTD,140907,730.00 ,
UK Trade and Investment,UK Trade and Investment,18/01/2011 ,Travel and Subsistence O'seas - Market Visit Scheme,UK Trade & Investment - Regional Directorate,GWE BUSINESS WEST LTD,140908,200.00 ,
UK Trade and Investment,UK Trade and Investment,18/01/2011 ,Travel and Subsistence O'seas - Market Visit Scheme,UK Trade & Investment - Regional Directorate,GWE BUSINESS WEST LTD,140908,550.00 ,
UK Trade and Investment,UK Trade and Investment,18/01/2011 ,Travel and Subsistence O'seas - Market Visit Scheme,UK Trade & Investment - Regional Directorate,GWE BUSINESS WEST LTD,140908,600.00 ,
UK Trade and Investment,UK Trade and Investment,18/01/2011 ,Travel and Subsistence O'seas - Market Visit Scheme,UK Trade & Investment - Regional Directorate,GWE BUSINESS WEST LTD,140908,600.00 ,
UK Trade and Investment,UK Trade and Investment,18/01/2011 ,Travel and Subsistence O'seas - Market Visit Scheme,UK Trade & Investment - Regional Directorate,GWE BUSINESS WEST LTD,140908,700.00 ,
UK Trade and Investment,UK Trade and Investment,18/01/2011 ,Travel and Subsistence O'seas - Market Visit Scheme,UK Trade & Investment - Regional Directorate,GWE BUSINESS WEST LTD,140908,450.00 ,
UK Trade and Investment,UK Trade and Investment,18/01/2011 ,Travel and Subsistence O'seas - Market Visit Scheme,UK Trade & Investment - Regional Directorate,GWE BUSINESS WEST LTD,140908,750.00 ,
UK Trade and Investment,UK Trade and Investment,18/01/2011 ,Travel and Subsistence O'seas - Market Visit Scheme,UK Trade & Investment - Regional Directorate,GWE BUSINESS WEST LTD,140908,750.00 ,
UK Trade and Investment,UK Trade and Investment,18/01/2011 ,Travel and Subsistence O'seas - Market Visit Scheme,UK Trade & Investment - Regional Directorate,GWE BUSINESS WEST LTD,140908,600.00 ,
UK Trade and Investment,UK Trade and Investment,18/01/2011 ,Travel and Subsistence O'seas - Market Visit Scheme,UK Trade & Investment - Regional Directorate,GWE BUSINESS WEST LTD,140908,750.00 ,
UK Trade and Investment,UK Trade and Investment,18/01/2011 ,Travel and Subsistence O'seas - Market Visit Scheme,UK Trade & Investment - Regional Directorate,GWE BUSINESS WEST LTD,140908,500.00 ,
UK Trade and Investment,UK Trade and Investment,18/01/2011 ,Travel and Subsistence O'seas - Market Visit Scheme,UK Trade & Investment - Regional Directorate,GWE BUSINESS WEST LTD,140909,550.00 ,
UK Trade and Investment,UK Trade and Investment,18/01/2011 ,Travel and Subsistence O'seas - Market Visit Scheme,UK Trade & Investment - Regional Directorate,GWE BUSINESS WEST LTD,140909,550.00 ,
UK Trade and Investment,UK Trade and Investment,18/01/2011 ,Travel and Subsistence O'seas - Market Visit Scheme,UK Trade & Investment - Regional Directorate,GWE BUSINESS WEST LTD,140909,550.00 ,
UK Trade and Investment,UK Trade and Investment,18/01/2011 ,Travel and Subsistence O'seas - Market Visit Scheme,UK Trade & Investment - Regional Directorate,GWE BUSINESS WEST LTD,140909,550.00 ,
UK Trade and Investment,UK Trade and Investment,18/01/2011 ,Travel and Subsistence O'seas - Market Visit Scheme,UK Trade & Investment - Regional Directorate,GWE BUSINESS WEST LTD,140909,550.00 ,
UK Trade and Investment,UK Trade and Investment,18/01/2011 ,Travel and Subsistence O'seas - Market Visit Scheme,UK Trade & Investment - Regional Directorate,GWE BUSINESS WEST LTD,140909,550.00 ,
UK Trade and Investment,UK Trade and Investment,18/01/2011 ,Travel and Subsistence O'seas - Market Visit Scheme,UK Trade & Investment - Regional Directorate,GWE BUSINESS WEST LTD,140909,550.00 ,
UK Trade and Investment,UK Trade and Investment,18/01/2011 ,Travel and Subsistence O'seas - Market Visit Scheme,UK Trade & Investment - Regional Directorate,GWE BUSINESS WEST LTD,140909,500.00 ,
UK Trade and Investment,UK Trade and Investment,18/01/2011 ,Travel and Subsistence O'seas - Market Visit Scheme,UK Trade & Investment - Regional Directorate,GWE BUSINESS WEST LTD,140909,500.00 ,
UK Trade and Investment,UK Trade and Investment,18/01/2011 ,Travel and Subsistence O'seas - Market Visit Scheme,UK Trade & Investment - Regional Directorate,GWE BUSINESS WEST LTD,140909,500.00 ,
UK Trade and Investment,UK Trade and Investment,18/01/2011 ,Travel and Subsistence O'seas - Market Visit Scheme,UK Trade & Investment - Regional Directorate,GWE BUSINESS WEST LTD,140909,500.00 ,
UK Trade and Investment,UK Trade and Investment,18/01/2011 ,Travel and Subsistence O'seas - Market Visit Scheme,UK Trade & Investment - Regional Directorate,PRECISION CHAINS LTD,140916,600.00 ,
UK Trade and Investment,UK Trade and Investment,18/01/2011 ,Travel and Subsistence O'seas - Market Visit Scheme,UK Trade & Investment - Regional Directorate,HOUSESUNNY LTD,140928,795.00 ,
UK Trade and Investment,UK Trade and Investment,18/01/2011 ,Travel and Subsistence O'seas - Market Visit Scheme,UK Trade & Investment - Regional Directorate,FORMAX (UK) LTD,140941,600.00 ,
UK Trade and Investment,UK Trade and Investment,18/01/2011 ,Travel and Subsistence O'seas - Market Visit Scheme,UK Trade & Investment - Regional Directorate,TWENTY FOUR OLD BUILDINGS,140947,700.00 ,
UK Trade and Investment,UK Trade and Investment,18/01/2011 ,Telecommunications - Ministerial Events,UK Trade & Investment - International Group,ACT TELECONFERENCING LTD,140932,961.40 ,581 8927 93
UK Trade and Investment,UK Trade and Investment,18/01/2011 ,Event Management - NINJ Sector Events,UK Trade & Investment - International Sectors Group,CHARTERED INSTITUTE FOR SECURITIES & INVESTMENT CISI,140948,12500.00 ,
UK Trade and Investment,UK Trade and Investment,18/01/2011 ,Entertainment UK - NINJ Sector Events Abroad,UK Trade & Investment - International Sectors Group,TRINITY LABAN CONSERVATOIRE OF MUSIC AND DANCE LTD,140937,600.00 ,
UK Trade and Investment,UK Trade and Investment,18/01/2011 ,Entertainment UK - NINJ Sector Events Abroad,UK Trade & Investment - International Sectors Group,TRINITY LABAN CONSERVATOIRE OF MUSIC AND DANCE LTD,140937,70.50 ,
UK Trade and Investment,UK Trade and Investment,18/01/2011 ,Scheme Management Charges - Passport Business Development Credits,UK Trade & Investment - Regional Directorate,RD BIOMED LTD,140727,339.12 ,
UK Trade and Investment,UK Trade and Investment,18/01/2011 ,Scheme Management Charges - Passport Business Development Credits,UK Trade & Investment - Regional Directorate,PRECISION DIPPINGS MARKETING LTD,140728,1500.00 ,
UK Trade and Investment,UK Trade and Investment,18/01/2011 ,Scheme Management Charges - Passport Business Development Credits,UK Trade & Investment - Regional Directorate,TURFTRAX COURSE SERVICES LTD,140729,1500.00 ,
UK Trade and Investment,UK Trade and Investment,18/01/2011 ,Scheme Management Charges - Passport Business Development Credits,UK Trade & Investment - Regional Directorate,COSMETIC MEDICAL TECHNOLOGIES LTD,140730,876.20 ,
UK Trade and Investment,UK Trade and Investment,18/01/2011 ,Scheme Management Charges - Passport Business Development Credits,UK Trade & Investment - Regional Directorate,TELEPHONE CONSULTATION SERVICES LTD,140731,1489.59 ,
UK Trade and Investment,UK Trade and Investment,18/01/2011 ,Scheme Management Charges - Passport Business Development Credits,UK Trade & Investment - Regional Directorate,HYDRAJAWS LTD,140732,1500.00 ,
UK Trade and Investment,UK Trade and Investment,18/01/2011 ,Scheme Management Charges - Passport Business Development Credits,UK Trade & Investment - Regional Directorate,R & P ENGINEERING SERVICES LTD,140733,1012.32 ,
UK Trade and Investment,UK Trade and Investment,18/01/2011 ,Scheme Management Charges - Passport Business Development Credits,UK Trade & Investment - Regional Directorate,ARMSA LTD T/A ARMSA CONSULTING,140734,197.06 ,
UK Trade and Investment,UK Trade and Investment,18/01/2011 ,Scheme Management Charges - Passport Business Development Credits,UK Trade & Investment - Regional Directorate,MIKE SKELTON T/A MSTC TRAINING & CONSULTANCY,140735,157.72 ,
UK Trade and Investment,UK Trade and Investment,18/01/2011 ,Scheme Management Charges - Passport Business Development Credits,UK Trade & Investment - Regional Directorate,GAMES EDUCATION LTD,140801,381.48 ,
UK Trade and Investment,UK Trade and Investment,18/01/2011 ,Scheme Management Charges - Passport Business Development Credits,UK Trade & Investment - Regional Directorate,GRADUATE STUDY OPTIONS LTD,140802,1068.12 ,
UK Trade and Investment,UK Trade and Investment,18/01/2011 ,Scheme Management Charges - Passport Business Development Credits,UK Trade & Investment - Regional Directorate,DESIGN BLUE LTD,140803,1500.00 ,
UK Trade and Investment,UK Trade and Investment,18/01/2011 ,Scheme Management Charges - Passport Business Development Credits,UK Trade & Investment - Regional Directorate,TRICON FOODSERVICE CONSULTANTS PLC,140804,226.05 ,
UK Trade and Investment,UK Trade and Investment,18/01/2011 ,Scheme Management Charges - Passport Business Development Credits,UK Trade & Investment - Regional Directorate,BIGNALL LUBRITEC LTD,140805,521.49 ,
UK Trade and Investment,UK Trade and Investment,18/01/2011 ,Scheme Management Charges - Passport Business Development Credits,UK Trade & Investment - Regional Directorate,BIGNALL LUBRITEC LTD,140805,417.71 ,
UK Trade and Investment,UK Trade and Investment,18/01/2011 ,Scheme Management Charges - Passport Business Development Credits,UK Trade & Investment - Regional Directorate,WIRED PRODUCTIONS LTD,140806,919.82 ,
UK Trade and Investment,UK Trade and Investment,18/01/2011 ,Scheme Management Charges - Passport Business Development Credits,UK Trade & Investment - Regional Directorate,AMEY COMMUNITY LTD,140950,2815.54 ,813047950
UK Trade and Investment,UK Trade and Investment,18/01/2011 ,Training - General - Passport Development & Events,UK Trade & Investment - Regional Directorate,SOUTH EAST TRADE & INVESTMENT LTD,140914,7880.53 ,
UK Trade and Investment,UK Trade and Investment,18/01/2011 ,Training - General - Passport Development & Events,UK Trade & Investment - Regional Directorate,SOUTH EAST TRADE & INVESTMENT LTD,140914,1196.25 ,
UK Trade and Investment,UK Trade and Investment,18/01/2011 ,Venue Hire - Passport Development & Events,UK Trade & Investment - Regional Directorate,YEW LODGE HOTEL,140912,680.00 ,
UK Trade and Investment,UK Trade and Investment,18/01/2011 ,Travel and Subsistence O'seas - Regional Interchange Scheme,UK Trade & Investment - Regional Directorate,EAST MIDLANDS BUSINESS LTD,140910,710.91 ,
UK Trade and Investment,UK Trade and Investment,18/01/2011 ,Stand Space/rental costs - Sector Events - Abroad,UK Trade & Investment - International Sectors Group,BIOTECHNOLOGY INDUSTRY ORGANISATION,140747,5414.64 ,
UK Trade and Investment,UK Trade and Investment,18/01/2011 ,Travel and Subsistence O'seas - Sector Events - Abroad,UK Trade & Investment - International Sectors Group,CMGRP UK LTD T/A WEBER SHANDWICK,140946,1431.00 ,
UK Trade and Investment,UK Trade and Investment,18/01/2011 ,Travel and Subsistence UK - Sector Events - UK,UK Trade & Investment - International Sectors Group,PRESTIGE CAR HIRE LTD,140757,42.03 ,
UK Trade and Investment,UK Trade and Investment,18/01/2011 ,Travel and Subsistence UK - Sector Events - UK,UK Trade & Investment - International Sectors Group,PRESTIGE CAR HIRE LTD,140757,38.98 ,
UK Trade and Investment,UK Trade and Investment,18/01/2011 ,Scheme Management Charges - Trade Development Support,UK Trade & Investment - International Group,BILL HENDERSON LVO MBE,140934,750.00 ,
UK Trade and Investment,UK Trade and Investment,18/01/2011 ,Event Management - Trade Marketing Events,UK Trade & Investment - Regional Directorate,SOUTH EAST TRADE & INVESTMENT LTD,140917,8859.90 ,
UK Trade and Investment,UK Trade and Investment,18/01/2011 ,Postage costs - Trade Marketing Events,UK Trade & Investment - Marketing Directorate,AWARE PROMOTIONAL MERCHANDISE LTD,140933,12.00 ,
UK Trade and Investment,UK Trade and Investment,18/01/2011 ,Promotional Materials - Trade Marketing Events,UK Trade & Investment - Marketing Directorate,AWARE PROMOTIONAL MERCHANDISE LTD,140935,1126.20 ,
UK Trade and Investment,UK Trade and Investment,18/01/2011 ,Stand Construction Costs - Trade Marketing Events,UK Trade & Investment - Regional Directorate,CLEARVIEW IMAGING SERVICES LTD,140813,485.00 ,
UK Trade and Investment,UK Trade and Investment,18/01/2011 ,Stand Construction Costs - Trade Marketing Events,UK Trade & Investment - Regional Directorate,CLEARVIEW IMAGING SERVICES LTD,140938,485.00 ,
UK Trade and Investment,UK Trade and Investment,18/01/2011 ,Travel and Subsistence O'seas - Trade Marketing Events,UK Trade & Investment - Regional Directorate,EAST MIDLANDS BUSINESS LTD,140904,1427.96 ,
UK Trade and Investment,UK Trade and Investment,18/01/2011 ,Basic Grants - Trade Show Access Programme,UK Trade & Investment - International Sectors Group,BRITISH EQUESTRIAN TRADE ASSOCIATION,140775,11200.00 ,348443441
UK Trade and Investment,UK Trade and Investment,18/01/2011 ,Basic Grants - Trade Show Access Programme,UK Trade & Investment - International Sectors Group,BIRMINGHAM CHAMBER OF COMMERCE & INDUSTRY,140939,19000.00 ,
UK Trade and Investment,UK Trade and Investment,18/01/2011 ,Basic Grants - Trade Show Access Programme,UK Trade & Investment - International Sectors Group,THE BRITISH INSTITUTE FOR LEARNING AND DEVELOPMENT,140942,4000.00 ,
UK Trade and Investment,UK Trade and Investment,18/01/2011 ,Sponsors Grants - Trade Show Access Programme,UK Trade & Investment - International Sectors Group,BIRMINGHAM CHAMBER OF COMMERCE & INDUSTRY,140940,4465.00 ,
UK Trade and Investment,UK Trade and Investment,18/01/2011 ,Sponsors Grants - Trade Show Access Programme,UK Trade & Investment - International Sectors Group,THE BRITISH INSTITUTE FOR LEARNING AND DEVELOPMENT,140943,6815.00 ,
UK Trade and Investment,UK Trade and Investment,19/01/2011 ,Development Cost - Website (AUC) - Clearing Account - Balance Sheet,UK Trade & Investment - IT and Finance Group,ADECCO UK LTD,140944,180.77 ,232 3479 75
UK Trade and Investment,UK Trade and Investment,19/01/2011 ,Development Cost - Website (AUC) - Clearing Account - Balance Sheet,UK Trade & Investment - IT and Finance Group,ADECCO UK LTD,140945,721.16 ,232 3479 75
UK Trade and Investment,UK Trade and Investment,19/01/2011 ,Rental of Accomodation - ,UK Trade & Investment - Defence and Security Organisation,THE CUMBERLAND GUOMAN LTD,140635,269.10 ,
UK Trade and Investment,UK Trade and Investment,19/01/2011 ,Rental of Accomodation - ,UK Trade & Investment - Defence and Security Organisation,THE CUMBERLAND GUOMAN LTD,140635,3.64 ,
UK Trade and Investment,UK Trade and Investment,19/01/2011 ,Research and Development Costs - Economic Monitoring and Evaluation,UK Trade & Investment - Economics and Evaluation,LONDON ECONOMICS LTD,140979,10150.00 ,
UK Trade and Investment,UK Trade and Investment,19/01/2011 ,Research and Development Costs - Economic Monitoring and Evaluation,UK Trade & Investment - Economics and Evaluation,LONDON ECONOMICS LTD,140979,10000.00 ,
UK Trade and Investment,UK Trade and Investment,19/01/2011 ,Venue Hire - International Trade Team Contracting,UK Trade & Investment - Regional Directorate,CHURCHILL HOUSE SECURITIES LTD T/A ROGERTHORPE MANOR HOTEL,140973,1119.87 ,
UK Trade and Investment,UK Trade and Investment,19/01/2011 ,Event Management - Inward Investment Publicity,UK Trade & Investment - Marketing Directorate,INSTITUTE OF DIRECTORS,140952,8000.00 ,535209948
UK Trade and Investment,UK Trade and Investment,19/01/2011 ,Event Management - Inward Investment Publicity,UK Trade & Investment - Marketing Directorate,INSTITUTE OF DIRECTORS,140953,8000.00 ,535209948
UK Trade and Investment,UK Trade and Investment,19/01/2011 ,Research and Development Costs - Inward Investment Research,UK Trade & Investment - Business Group,FUSE 8 LTD,140827,50.00 ,734613148
UK Trade and Investment,UK Trade and Investment,19/01/2011 ,Travel and Subsistence O'seas - Market Visit Scheme,UK Trade & Investment - Regional Directorate,GWE BUSINESS WEST LTD,140906,200.00 ,
UK Trade and Investment,UK Trade and Investment,19/01/2011 ,Travel and Subsistence O'seas - Market Visit Scheme,UK Trade & Investment - Regional Directorate,GWE BUSINESS WEST LTD,140906,500.00 ,
UK Trade and Investment,UK Trade and Investment,19/01/2011 ,Travel and Subsistence O'seas - Market Visit Scheme,UK Trade & Investment - Regional Directorate,GWE BUSINESS WEST LTD,140906,200.00 ,
UK Trade and Investment,UK Trade and Investment,19/01/2011 ,Travel and Subsistence O'seas - Market Visit Scheme,UK Trade & Investment - Regional Directorate,GWE BUSINESS WEST LTD,140906,500.00 ,
UK Trade and Investment,UK Trade and Investment,19/01/2011 ,Travel and Subsistence O'seas - Market Visit Scheme,UK Trade & Investment - Regional Directorate,GWE BUSINESS WEST LTD,140906,750.00 ,
UK Trade and Investment,UK Trade and Investment,19/01/2011 ,Travel and Subsistence O'seas - Market Visit Scheme,UK Trade & Investment - Regional Directorate,GWE BUSINESS WEST LTD,140906,700.00 ,
UK Trade and Investment,UK Trade and Investment,19/01/2011 ,Travel and Subsistence O'seas - Market Visit Scheme,UK Trade & Investment - Regional Directorate,GWE BUSINESS WEST LTD,140906,500.00 ,
UK Trade and Investment,UK Trade and Investment,19/01/2011 ,Travel and Subsistence O'seas - Market Visit Scheme,UK Trade & Investment - Regional Directorate,GWE BUSINESS WEST LTD,140906,50.00 ,
UK Trade and Investment,UK Trade and Investment,19/01/2011 ,Travel and Subsistence O'seas - Market Visit Scheme,UK Trade & Investment - Regional Directorate,GWE BUSINESS WEST LTD,140906,500.00 ,
UK Trade and Investment,UK Trade and Investment,19/01/2011 ,Travel and Subsistence O'seas - Market Visit Scheme,UK Trade & Investment - Regional Directorate,SOUTH EAST TRADE & INVESTMENT LTD,140959,370.02 ,
UK Trade and Investment,UK Trade and Investment,19/01/2011 ,Travel and Subsistence O'seas - Market Visit Scheme,UK Trade & Investment - Regional Directorate,SOUTH EAST TRADE & INVESTMENT LTD,140959,3600.00 ,
UK Trade and Investment,UK Trade and Investment,19/01/2011 ,Travel and Subsistence O'seas - Market Visit Scheme,UK Trade & Investment - Regional Directorate,SOUTH EAST TRADE & INVESTMENT LTD,140959,300.00 ,
UK Trade and Investment,UK Trade and Investment,19/01/2011 ,Travel and Subsistence O'seas - Market Visit Scheme,UK Trade & Investment - Regional Directorate,SOUTH EAST TRADE & INVESTMENT LTD,140959,1330.00 ,
UK Trade and Investment,UK Trade and Investment,19/01/2011 ,Travel and Subsistence O'seas - Market Visit Scheme,UK Trade & Investment - Regional Directorate,SOUTH EAST TRADE & INVESTMENT LTD,140959,5305.00 ,
UK Trade and Investment,UK Trade and Investment,19/01/2011 ,Travel and Subsistence O'seas - Market Visit Scheme,UK Trade & Investment - Regional Directorate,SOUTH EAST TRADE & INVESTMENT LTD,140959,2950.00 ,
UK Trade and Investment,UK Trade and Investment,19/01/2011 ,Travel and Subsistence O'seas - Market Visit Scheme,UK Trade & Investment - Regional Directorate,SOUTH EAST TRADE & INVESTMENT LTD,140959,294.98 ,
UK Trade and Investment,UK Trade and Investment,19/01/2011 ,Travel and Subsistence O'seas - Market Visit Scheme,UK Trade & Investment - Regional Directorate,SOUTH EAST TRADE & INVESTMENT LTD,140959,300.00 ,
UK Trade and Investment,UK Trade and Investment,19/01/2011 ,Travel and Subsistence O'seas - Market Visit Scheme,UK Trade & Investment - Regional Directorate,SOUTH EAST TRADE & INVESTMENT LTD,140959,2100.00 ,
UK Trade and Investment,UK Trade and Investment,19/01/2011 ,Travel and Subsistence O'seas - Market Visit Scheme,UK Trade & Investment - Regional Directorate,GWE BUSINESS WEST LTD,140966,650.00 ,650 5906 38
UK Trade and Investment,UK Trade and Investment,19/01/2011 ,Travel and Subsistence O'seas - Market Visit Scheme,UK Trade & Investment - Regional Directorate,GWE BUSINESS WEST LTD,140966,450.00 ,650 5906 38
UK Trade and Investment,UK Trade and Investment,19/01/2011 ,Travel and Subsistence O'seas - Market Visit Scheme,UK Trade & Investment - Regional Directorate,GWE BUSINESS WEST LTD,140966,80.00 ,650 5906 38
UK Trade and Investment,UK Trade and Investment,19/01/2011 ,Travel and Subsistence O'seas - Market Visit Scheme,UK Trade & Investment - Regional Directorate,GWE BUSINESS WEST LTD,140966,150.00 ,650 5906 38
UK Trade and Investment,UK Trade and Investment,19/01/2011 ,Travel and Subsistence O'seas - Market Visit Scheme,UK Trade & Investment - Regional Directorate,GWE BUSINESS WEST LTD,140966,750.00 ,650 5906 38
UK Trade and Investment,UK Trade and Investment,19/01/2011 ,Travel and Subsistence O'seas - Market Visit Scheme,UK Trade & Investment - Regional Directorate,GWE BUSINESS WEST LTD,140966,130.00 ,650 5906 38
UK Trade and Investment,UK Trade and Investment,19/01/2011 ,Event Management - Outward missions,UK Trade & Investment - International Sectors Group,CONSTRUCTION EQUIPMENT ASSOCIATION,140955,2500.00 ,243385854
UK Trade and Investment,UK Trade and Investment,19/01/2011 ,Event Management - Outward missions,UK Trade & Investment - International Sectors Group,THE CONSTRUCTION EQUIPMENT ASSOCIATION (CEA),140964,7500.00 ,
UK Trade and Investment,UK Trade and Investment,19/01/2011 ,Bank Charges - Commercial Banks - Overseas Market Introduction Service,UK Trade & Investment - Regional Directorate,DTI OTSS COSTS A\C,140949,445.88 ,
UK Trade and Investment,UK Trade and Investment,19/01/2011 ,Bank Charges - Commercial Banks - Overseas Market Introduction Service,UK Trade & Investment - Regional Directorate,DTI OTSS COSTS A\C,140951,416.00 ,
UK Trade and Investment,UK Trade and Investment,19/01/2011 ,Scheme Management Charges - Passport Business Development Credits,UK Trade & Investment - Regional Directorate,SYNERGO TECHNOLOGY LTD,138842,631.32 ,
UK Trade and Investment,UK Trade and Investment,19/01/2011 ,Scheme Management Charges - Passport Business Development Credits,UK Trade & Investment - Regional Directorate,SELADIS BIO LTD,140968,1205.13 ,
UK Trade and Investment,UK Trade and Investment,19/01/2011 ,Training - General - Passport Development & Events,UK Trade & Investment - Regional Directorate,JOHN HARRISON T/A INTERNATIONAL TRADE TRAINING & CONSULTANCY,140961,1281.50 ,
UK Trade and Investment,UK Trade and Investment,19/01/2011 ,Training - General - Passport Development & Events,UK Trade & Investment - Regional Directorate,JOHN HARRISON T/A INTERNATIONAL TRADE TRAINING & CONSULTANCY,140961,1063.50 ,
UK Trade and Investment,UK Trade and Investment,19/01/2011 ,Event Management - R&D Programme Events,UK Trade & Investment - Business Group,FOREIGN AND COMMONWEALTH OFFICE (FCO),137443,1724.55 ,
UK Trade and Investment,UK Trade and Investment,19/01/2011 ,Event Management - R&D Programme Events,UK Trade & Investment - Business Group,FOREIGN AND COMMONWEALTH OFFICE (FCO),137445,198.34 ,
UK Trade and Investment,UK Trade and Investment,19/01/2011 ,Travel and Subsistence O'seas - Regional Interchange Scheme,UK Trade & Investment - Regional Directorate,EAST MIDLANDS BUSINESS LTD,140911,740.00 ,
UK Trade and Investment,UK Trade and Investment,19/01/2011 ,Travel and Subsistence O'seas - Regional Interchange Scheme,UK Trade & Investment - Regional Directorate,EAST MIDLANDS BUSINESS LTD,140911,363.84 ,
UK Trade and Investment,UK Trade and Investment,19/01/2011 ,Event Management - Sector Events - Abroad,UK Trade & Investment - International Sectors Group,THE CONSTRUCTION EQUIPMENT ASSOCIATION (CEA),140958,19975.00 ,
UK Trade and Investment,UK Trade and Investment,19/01/2011 ,Event Management - Sector Events - Abroad,UK Trade & Investment - International Sectors Group,ADVERTISING PRODUCERS ASSOCIATION,140969,3500.00 ,340326200
UK Trade and Investment,UK Trade and Investment,19/01/2011 ,Basic Grants - SESA Solo Support Scheme,UK Trade & Investment - International Sectors Group,ANISE CASHMERE LTD,140962,1000.00 ,
UK Trade and Investment,UK Trade and Investment,19/01/2011 ,Basic Grants - SESA Solo Support Scheme,UK Trade & Investment - International Sectors Group,ALBION ALLOYS LTD,140963,1000.00 ,
UK Trade and Investment,UK Trade and Investment,19/01/2011 ,Basic Grants - SESA Solo Support Scheme,UK Trade & Investment - International Sectors Group,STRINGTHEORY LTD,140965,1000.00 ,
UK Trade and Investment,UK Trade and Investment,19/01/2011 ,Basic Grants - SESA Solo Support Scheme,UK Trade & Investment - International Sectors Group,HARNSER UK LTD,140967,1000.00 ,
UK Trade and Investment,UK Trade and Investment,19/01/2011 ,Online Services charges - Trade Marketing Events,UK Trade & Investment - Marketing Directorate,TOUCHSCREEN SERVICES LTD,140954,449.97 ,
UK Trade and Investment,UK Trade and Investment,19/01/2011 ,Speakers fees - Trade Marketing Events,UK Trade & Investment - Regional Directorate,SPEAKERS CORNER (LONDON) LTD T/A SPEAKERS CORNER,140980,5400.00 ,
UK Trade and Investment,UK Trade and Investment,19/01/2011 ,Stand Construction Costs - Trade Marketing Events,UK Trade & Investment - Marketing Directorate,OCEAN DESIGNS LTD,140976,240.00 ,738701423
UK Trade and Investment,UK Trade and Investment,19/01/2011 ,Stand Construction Costs - Trade Marketing Events,UK Trade & Investment - Marketing Directorate,OCEAN DESIGNS LTD,140977,14359.69 ,738701423
UK Trade and Investment,UK Trade and Investment,19/01/2011 ,Stand Construction Costs - Trade Marketing Events,UK Trade & Investment - Marketing Directorate,OCEAN DESIGNS LTD,140978,166.00 ,738701423
UK Trade and Investment,UK Trade and Investment,19/01/2011 ,Venue Hire - Trade Marketing Events,UK Trade & Investment - Regional Directorate,TASTY BITES,140981,30.00 ,
UK Trade and Investment,UK Trade and Investment,19/01/2011 ,Basic Grants - Trade Show Access Programme,UK Trade & Investment - International Sectors Group,ASSOCIATION OF BRITISH OFFSHORE INDUSTRIES,140970,4000.00 ,
UK Trade and Investment,UK Trade and Investment,19/01/2011 ,Basic Grants - Trade Show Access Programme,UK Trade & Investment - International Sectors Group,HULL AND HUMBER CHAMBER OF COMMERCE INDUSTRY AND SHIPPING,140974,4200.00 ,
UK Trade and Investment,UK Trade and Investment,19/01/2011 ,Basic Grants - Trade Show Access Programme,UK Trade & Investment - International Sectors Group,MOTORSPORT INDUSTRY ASSOCIATION [MIA],140975,42000.00 ,
UK Trade and Investment,UK Trade and Investment,19/01/2011 ,Sponsors Grants - Trade Show Access Programme,UK Trade & Investment - International Sectors Group,ASSOCIATION OF BRITISH OFFSHORE INDUSTRIES,140971,960.00 ,
UK Trade and Investment,UK Trade and Investment,19/01/2011 ,Video Production Services - UKTI Corporate Marketing,UK Trade & Investment - Marketing Directorate,S K & E S MAHER T/A SKM PRODUCTIONS,140956,310.00 ,
UK Trade and Investment,UK Trade and Investment,19/01/2011 ,Video Production Services - UKTI Corporate Marketing,UK Trade & Investment - Marketing Directorate,S K & E S MAHER T/A SKM PRODUCTIONS,140957,155.00 ,
UK Trade and Investment,UK Trade and Investment,20/01/2011 ,Research and Development Costs - Economic Monitoring and Evaluation,UK Trade & Investment - Economics and Evaluation,DR CATHERINE ROBINSON,140988,750.00 ,
UK Trade and Investment,UK Trade and Investment,20/01/2011 ,Research and Development Costs - Economic Monitoring and Evaluation,UK Trade & Investment - Economics and Evaluation,UNIVERSITY OF ESSEX,141000,5793.00 ,594 794 865
UK Trade and Investment,UK Trade and Investment,20/01/2011 ,Scheme Management Charges - Gateway to Global Growth,UK Trade & Investment - Regional Directorate,GWE BUSINESS WEST LTD,140984,940.32 ,
UK Trade and Investment,UK Trade and Investment,20/01/2011 ,Scheme Management Charges - International Trade Team Contracting,UK Trade & Investment - Regional Directorate,GWE BUSINESS WEST LTD,140984,151890.03 ,
UK Trade and Investment,UK Trade and Investment,20/01/2011 ,Scheme Management Charges - International Trade Team Contracting,UK Trade & Investment - Regional Directorate,RUSSELL BUSINESS SERVICES LTD,140985,4606.00 ,
UK Trade and Investment,UK Trade and Investment,20/01/2011 ,Scheme Management Charges - International Trade Team Contracting,UK Trade & Investment - Regional Directorate,RUSSELL BUSINESS SERVICES LTD,140985,659.54 ,
UK Trade and Investment,UK Trade and Investment,20/01/2011 ,Travel and Subsistence O'seas - Market Visit Scheme,UK Trade & Investment - Regional Directorate,UNIVERSITY OF SHEFFIELD,140986,575.00 ,648238808
UK Trade and Investment,UK Trade and Investment,20/01/2011 ,Travel and Subsistence O'seas - Market Visit Scheme,UK Trade & Investment - Regional Directorate,ARCHITECTS DESIGN PARTNERSHIP LLP,140989,550.00 ,
UK Trade and Investment,UK Trade and Investment,20/01/2011 ,Travel and Subsistence O'seas - Market Visit Scheme,UK Trade & Investment - Regional Directorate,PRIMASIL SILICONES LTD,140990,600.00 ,
UK Trade and Investment,UK Trade and Investment,20/01/2011 ,Event Management - Outward missions,UK Trade & Investment - International Sectors Group,ADS GROUP LTD,141003,6600.00 ,
UK Trade and Investment,UK Trade and Investment,20/01/2011 ,Printed Publications - Outward missions,UK Trade & Investment - International Sectors Group,ADS GROUP LTD,141003,480.00 ,
UK Trade and Investment,UK Trade and Investment,20/01/2011 ,Scheme Management Charges - Passport Business Development Credits,UK Trade & Investment - Regional Directorate,HELIOS SOFTWARE LTD,140736,1000.00 ,
UK Trade and Investment,UK Trade and Investment,20/01/2011 ,Scheme Management Charges - Passport Business Development Credits,UK Trade & Investment - Regional Directorate,QUARK MOTORSPORT LTD,140737,203.66 ,
UK Trade and Investment,UK Trade and Investment,20/01/2011 ,Scheme Management Charges - Passport Business Development Credits,UK Trade & Investment - Regional Directorate,SPIRIT HEALTHCARE LTD,140879,1500.00 ,
UK Trade and Investment,UK Trade and Investment,20/01/2011 ,Scheme Management Charges - Passport Business Development Credits,UK Trade & Investment - Regional Directorate,ISLE OF ENGLISH LTD,140881,1025.00 ,
UK Trade and Investment,UK Trade and Investment,20/01/2011 ,Scheme Management Charges - Passport Business Development Credits,UK Trade & Investment - Regional Directorate,DEBORAH WILLMINGTON T/A DEBORAH WILLMINGTON DESIGNS,140889,325.00 ,
UK Trade and Investment,UK Trade and Investment,20/01/2011 ,Scheme Management Charges - Passport Business Development Credits,UK Trade & Investment - Regional Directorate,DEBORAH WILLMINGTON T/A DEBORAH WILLMINGTON DESIGNS,140889,602.68 ,
UK Trade and Investment,UK Trade and Investment,20/01/2011 ,Scheme Management Charges - Passport Business Development Credits,UK Trade & Investment - Regional Directorate,CMCA (UK) LTD,140892,680.98 ,
UK Trade and Investment,UK Trade and Investment,20/01/2011 ,Scheme Management Charges - Passport Business Development Credits,UK Trade & Investment - Regional Directorate,TONY TEAM LTD,140918,1500.00 ,
UK Trade and Investment,UK Trade and Investment,20/01/2011 ,Scheme Management Charges - Passport Business Development Credits,UK Trade & Investment - Regional Directorate,SAFETY MED LTD,140920,619.04 ,
UK Trade and Investment,UK Trade and Investment,20/01/2011 ,Scheme Management Charges - Passport Business Development Credits,UK Trade & Investment - Regional Directorate,OCUREM LTD,140924,664.72 ,
UK Trade and Investment,UK Trade and Investment,20/01/2011 ,Scheme Management Charges - Passport Business Development Credits,UK Trade & Investment - Regional Directorate,ACCELERATED TRAINING & CONSULTANCY LLP,140925,789.67 ,
UK Trade and Investment,UK Trade and Investment,20/01/2011 ,Training - General - Passport Development & Events,UK Trade & Investment - Regional Directorate,GWE BUSINESS WEST LTD,140984,9556.60 ,
UK Trade and Investment,UK Trade and Investment,20/01/2011 ,Venue Hire - Passport Development & Events,UK Trade & Investment - Regional Directorate,GWE BUSINESS WEST LTD,140984,6000.00 ,
UK Trade and Investment,UK Trade and Investment,20/01/2011 ,Venue Hire - Passport Development & Events,UK Trade & Investment - Regional Directorate,MARRIOTT LEICESTER,140995,783.40 ,
UK Trade and Investment,UK Trade and Investment,20/01/2011 ,Design Services - Sector Events - Abroad,UK Trade & Investment - International Sectors Group,AWARE PROMOTIONAL MERCHANDISE LTD,141004,149.00 ,
UK Trade and Investment,UK Trade and Investment,20/01/2011 ,Travel and Subsistence O'seas - Sector Events - Abroad,UK Trade & Investment - International Sectors Group,HOLIDAY INN EXPRESS DUBAI SAFA PARK,140767,3510.00 ,
UK Trade and Investment,UK Trade and Investment,20/01/2011 ,Travel and Subsistence O'seas - Sector Events - Abroad,UK Trade & Investment - International Sectors Group,PORT FINANCE INTERNATIONAL LTD,141001,3500.00 ,
UK Trade and Investment,UK Trade and Investment,20/01/2011 ,Basic Grants - SESA Solo Support Scheme,UK Trade & Investment - International Sectors Group,VECTAIR SYSTEMS LTD,140286,1000.00 ,
UK Trade and Investment,UK Trade and Investment,20/01/2011 ,Basic Grants - SESA Solo Support Scheme,UK Trade & Investment - International Sectors Group,KELLIE MILLER T/A KELLIE MILLER ART AND DESIGN,141007,1000.00 ,
UK Trade and Investment,UK Trade and Investment,20/01/2011 ,Basic Grants - SESA Solo Support Scheme,UK Trade & Investment - International Sectors Group,EDINBURGH WEAVERS LTD,141008,1000.00 ,786865554
UK Trade and Investment,UK Trade and Investment,20/01/2011 ,Basic Grants - SESA Solo Support Scheme,UK Trade & Investment - International Sectors Group,DESIGN CATERING EQUIPMENT LTD,141009,1000.00 ,
UK Trade and Investment,UK Trade and Investment,20/01/2011 ,Basic Grants - SESA Solo Support Scheme,UK Trade & Investment - International Sectors Group,HARMATAN & OAKRIDGE LEATHERS 2008 LTD,141010,1000.00 ,
UK Trade and Investment,UK Trade and Investment,20/01/2011 ,Research and Development Costs - Study of Benefit of Trade & Investment,UK Trade & Investment - Economics and Evaluation,OMB RESEARCH LTD,140996,10000.00 ,846 9572 73
UK Trade and Investment,UK Trade and Investment,20/01/2011 ,Display Materials/Signage - Trade Marketing Events,UK Trade & Investment - Regional Directorate,ADECS LTD T/A ADECS PROFITA,140991,384.00 ,
UK Trade and Investment,UK Trade and Investment,20/01/2011 ,Stand Construction Costs - Trade Marketing Events,UK Trade & Investment - Defence and Security Organisation,EDGE EXHIBITION DESIGN LTD,140993,1910.00 ,771 1963 18
UK Trade and Investment,UK Trade and Investment,20/01/2011 ,Promotional Materials - Trade Marketing Publication,UK Trade & Investment - International Sectors Group,FAVERSHAM HOUSE GROUP LTD,140999,10525.00 ,
UK Trade and Investment,UK Trade and Investment,20/01/2011 ,Basic Grants - Trade Show Access Programme,UK Trade & Investment - International Sectors Group,CONSTRUCTION EQUIPMENT ASSOCIATION,141011,14000.00 ,243385854
UK Trade and Investment,UK Trade and Investment,20/01/2011 ,Sponsors Grants - Trade Show Access Programme,UK Trade & Investment - International Sectors Group,HOME GROWN CEREALS AUTHORITY,140997,17625.00 ,
UK Trade and Investment,UK Trade and Investment,21/01/2011 ,Development Cost - Website (AUC) - Clearing Account - Balance Sheet,UK Trade & Investment - IT and Finance Group,METHODS CONSULTING LTD,140844,5640.00 ,524 9877 04
UK Trade and Investment,UK Trade and Investment,21/01/2011 ,Catering - ,UK Trade & Investment - Defence and Security Organisation,HMS GLOUCESTER,140929,93.39 ,
UK Trade and Investment,UK Trade and Investment,21/01/2011 ,Scheme Management Charges - Export Communications Review,UK Trade & Investment - Regional Directorate,THE BRITISH CHAMBERS OF COMMERCE,141012,250.00 ,243180781
UK Trade and Investment,UK Trade and Investment,21/01/2011 ,Scheme Management Charges - Export Communications Review,UK Trade & Investment - Regional Directorate,THE BRITISH CHAMBERS OF COMMERCE,141028,250.00 ,243180781
UK Trade and Investment,UK Trade and Investment,21/01/2011 ,Scheme Management Charges - Fiscal Compass Programme,UK Trade & Investment - International Sectors Group,PA CONSULTING GROUP LTD,141031,64313.63 ,238535057
UK Trade and Investment,UK Trade and Investment,21/01/2011 ,Scheme Management Charges - Fiscal Compass Programme,UK Trade & Investment - International Sectors Group,PA CONSULTING GROUP LTD,141032,152017.82 ,238535057
UK Trade and Investment,UK Trade and Investment,21/01/2011 ,Design Services - Inward Investment Publicity,UK Trade & Investment - Marketing Directorate,BRAHM LTD T/A BRASS,141005,500.00 ,
UK Trade and Investment,UK Trade and Investment,21/01/2011 ,Design Services - Inward Investment Publicity,UK Trade & Investment - Marketing Directorate,ACUMEN DESIGN CONSULTANCY LTD,141034,341.00 ,843441339
UK Trade and Investment,UK Trade and Investment,21/01/2011 ,Translation/Interpretation services - Inward Investment Publicity,UK Trade & Investment - Marketing Directorate,KAZUE AIZAWA,141022,1360.00 ,
UK Trade and Investment,UK Trade and Investment,21/01/2011 ,Development Cost - IT Intangible (AUC) - Clearing Account - Online,UK Trade & Investment - Marketing Directorate,PARASOL LTD,141027,2961.00 ,
UK Trade and Investment,UK Trade and Investment,21/01/2011 ,Event Management - Outward missions,UK Trade & Investment - International Sectors Group,ADS GROUP LTD,141025,8000.00 ,
UK Trade and Investment,UK Trade and Investment,21/01/2011 ,Printed Publications - Outward missions,UK Trade & Investment - International Sectors Group,ADS GROUP LTD,141025,700.00 ,
UK Trade and Investment,UK Trade and Investment,21/01/2011 ,Printed Publications - Outward missions,UK Trade & Investment - International Sectors Group,ADS GROUP LTD,141025,267.00 ,
UK Trade and Investment,UK Trade and Investment,21/01/2011 ,Translation/Interpretation services - Sector Events - UK,UK Trade & Investment - International Sectors Group,FCO SERVICES,140752,1950.00 ,
UK Trade and Investment,UK Trade and Investment,21/01/2011 ,Venue Hire - Sector Events - UK,UK Trade & Investment - International Sectors Group,THE ST DAVID'S HOTEL & SPA (PRINCIPAL HAYLEY GROUP),140936,786.25 ,3299012
UK Trade and Investment,UK Trade and Investment,21/01/2011 ,Venue Hire - Sector Events - UK,UK Trade & Investment - International Sectors Group,THE ST DAVID'S HOTEL & SPA (PRINCIPAL HAYLEY GROUP),140936,208.75 ,3299012
UK Trade and Investment,UK Trade and Investment,21/01/2011 ,Design Services - Trade Marketing Events,UK Trade & Investment - Regional Directorate,CHRISTINA SHINGLER,141024,1500.00 ,
UK Trade and Investment,UK Trade and Investment,21/01/2011 ,Display Materials/Signage - Trade Marketing Events,UK Trade & Investment - Marketing Directorate,FOREIGN AND COMMONWEALTH OFFICE (FCO),141046,117.50 ,
UK Trade and Investment,UK Trade and Investment,21/01/2011 ,Media and Press Services - Trade Marketing Events,UK Trade & Investment - Regional Directorate,BDAILY LTD,141026,100.00 ,
UK Trade and Investment,UK Trade and Investment,21/01/2011 ,Venue Hire - Trade Marketing Events,UK Trade & Investment - Marketing Directorate,CITY FURNITURE HIRE LTD,140998,240.00 ,
UK Trade and Investment,UK Trade and Investment,21/01/2011 ,Venue Hire - Trade Marketing Events,UK Trade & Investment - Regional Directorate,YEW LODGE HOTEL,141021,241.66 ,
UK Trade and Investment,UK Trade and Investment,21/01/2011 ,Design Services - Trade Marketing Publicity,UK Trade & Investment - Marketing Directorate,ACUMEN DESIGN CONSULTANCY LTD,141014,180.00 ,843441339
UK Trade and Investment,UK Trade and Investment,21/01/2011 ,Sponsors Grants - Trade Show Access Programme,UK Trade & Investment - International Sectors Group,UK FASHION AND TEXTILE ASSOCIATION LTD (UKFT),141015,27476.69 ,340235008
UK Trade and Investment,UK Trade and Investment,24/01/2011 ,Development Cost - Website (AUC) - Clearing Account - Balance Sheet,UK Trade & Investment - IT and Finance Group,MICHAEL PAGE INTERNATIONAL RECRUITMENT LTD,141040,1863.94 ,354259936
UK Trade and Investment,UK Trade and Investment,24/01/2011 ,Development Cost - Website (AUC) - Clearing Account - Balance Sheet,UK Trade & Investment - IT and Finance Group,MICHAEL PAGE INTERNATIONAL RECRUITMENT LTD,141041,2485.25 ,354259936
UK Trade and Investment,UK Trade and Investment,24/01/2011 ,Development Cost - Website (AUC) - Clearing Account - Balance Sheet,UK Trade & Investment - IT and Finance Group,MICHAEL PAGE INTERNATIONAL RECRUITMENT LTD,141042,1242.62 ,354259936
UK Trade and Investment,UK Trade and Investment,24/01/2011 ,Scheme Management Charges - Export Communications Review,UK Trade & Investment - Regional Directorate,THE BRITISH CHAMBERS OF COMMERCE,141029,250.00 ,243180781
UK Trade and Investment,UK Trade and Investment,24/01/2011 ,Scheme Management Charges - Export Communications Review,UK Trade & Investment - Regional Directorate,THE BRITISH CHAMBERS OF COMMERCE,141030,250.00 ,243180781
UK Trade and Investment,UK Trade and Investment,24/01/2011 ,Scheme Management Charges - International Trade Team Contracting,UK Trade & Investment - Regional Directorate,THE REGIONAL FOOD GROUP FOR YORKSHIRE AND HUMBER LTD,141017,2578.68 ,
UK Trade and Investment,UK Trade and Investment,24/01/2011 ,Scheme Management Charges - International Trade Team Contracting,UK Trade & Investment - Regional Directorate,ADVANTAGE WEST MIDLANDS,141189,39356.52 ,
UK Trade and Investment,UK Trade and Investment,24/01/2011 ,Design Services - Inward Investment Publicity,UK Trade & Investment - Marketing Directorate,ACUMEN DESIGN CONSULTANCY LTD,141036,60.00 ,843441339
UK Trade and Investment,UK Trade and Investment,24/01/2011 ,Design Services - Inward Investment Publicity,UK Trade & Investment - Marketing Directorate,ACUMEN DESIGN CONSULTANCY LTD,141037,336.00 ,843441339
UK Trade and Investment,UK Trade and Investment,24/01/2011 ,Design Services - Inward Investment Publicity,UK Trade & Investment - Marketing Directorate,ACUMEN DESIGN CONSULTANCY LTD,141038,439.00 ,843441339
UK Trade and Investment,UK Trade and Investment,24/01/2011 ,Travel and Subsistence O'seas - Market Visit Scheme,UK Trade & Investment - Regional Directorate,NICKY THOMSON TEXTILES,141183,700.00 ,
UK Trade and Investment,UK Trade and Investment,24/01/2011 ,Travel and Subsistence O'seas - Market Visit Scheme,UK Trade & Investment - Regional Directorate,NORTH STAFFORDSHIRE CHAMBER OF COMMERCE AND INDUSTRY,141218,500.00 ,
UK Trade and Investment,UK Trade and Investment,24/01/2011 ,Travel and Subsistence O'seas - Market Visit Scheme,UK Trade & Investment - Regional Directorate,MY LEARNING (UK) LTD,141221,450.00 ,
UK Trade and Investment,UK Trade and Investment,24/01/2011 ,Travel and Subsistence O'seas - Market Visit Scheme,UK Trade & Investment - Regional Directorate,FACTORY MASTER LTD,141223,750.00 ,
UK Trade and Investment,UK Trade and Investment,24/01/2011 ,Display Materials/Signage - NINJ Sector Events,UK Trade & Investment - International Sectors Group,SERVICE POINT UK LTD,141044,75.74 ,232 801 005
UK Trade and Investment,UK Trade and Investment,24/01/2011 ,Scheme Management Charges - Passport Business Development Credits,UK Trade & Investment - Regional Directorate,WRAPID MANUFACTURING LTD,138580,649.47 ,
UK Trade and Investment,UK Trade and Investment,24/01/2011 ,Scheme Management Charges - Passport Business Development Credits,UK Trade & Investment - Regional Directorate,AMEY COMMUNITY LTD,141207,38.00 ,813047950
UK Trade and Investment,UK Trade and Investment,24/01/2011 ,Venue Hire - Passport Development & Events,UK Trade & Investment - Regional Directorate,HOLIDAY INN,141035,1625.00 ,672 7200 42
UK Trade and Investment,UK Trade and Investment,24/01/2011 ,Event Management - Sector Events - Abroad,UK Trade & Investment - International Sectors Group,SOUTH WEST SCREEN,141216,2500.00 ,
UK Trade and Investment,UK Trade and Investment,24/01/2011 ,Event Management - Sector Events - UK,UK Trade & Investment - International Sectors Group,BUSINESS TO BUSINESS EXHIBITIONS LTD,141061,625.00 ,577 6874 69
UK Trade and Investment,UK Trade and Investment,24/01/2011 ,Stand Space/rental costs - Sector Events - UK,UK Trade & Investment - International Sectors Group,CITADEL EVENTS LTD,141039,5875.00 ,
UK Trade and Investment,UK Trade and Investment,24/01/2011 ,Basic Grants - SESA Solo Support Scheme,UK Trade & Investment - International Sectors Group,JANE HOGBEN TERRACOTTA T/A HOGBEN POTTERY,141228,1000.00 ,
UK Trade and Investment,UK Trade and Investment,24/01/2011 ,Design Services - Trade Marketing Events,UK Trade & Investment - Marketing Directorate,CLEARVIEW IMAGING SERVICES LTD,141048,156.00 ,
UK Trade and Investment,UK Trade and Investment,24/01/2011 ,Event Management - Trade Marketing Events,UK Trade & Investment - Regional Directorate,THE REGIONAL FOOD GROUP FOR YORKSHIRE AND HUMBER LTD,141017,450.00 ,
UK Trade and Investment,UK Trade and Investment,24/01/2011 ,Event Management - Trade Marketing Events,UK Trade & Investment - Regional Directorate,THE REGIONAL FOOD GROUP FOR YORKSHIRE AND HUMBER LTD,141017,132.84 ,
UK Trade and Investment,UK Trade and Investment,24/01/2011 ,Event Management - Trade Marketing Events,UK Trade & Investment - Regional Directorate,THE REGIONAL FOOD GROUP FOR YORKSHIRE AND HUMBER LTD,141017,2200.00 ,
UK Trade and Investment,UK Trade and Investment,24/01/2011 ,Online Services charges - Trade Marketing Events,UK Trade & Investment - Marketing Directorate,CLEARVIEW IMAGING SERVICES LTD,141055,1300.00 ,
UK Trade and Investment,UK Trade and Investment,24/01/2011 ,Stand Construction Costs - Trade Marketing Events,UK Trade & Investment - Marketing Directorate,CLEARVIEW IMAGING SERVICES LTD,141054,1020.00 ,
UK Trade and Investment,UK Trade and Investment,24/01/2011 ,Stand Construction Costs - Trade Marketing Events,UK Trade & Investment - Marketing Directorate,CLEARVIEW IMAGING SERVICES LTD,141056,195.00 ,
UK Trade and Investment,UK Trade and Investment,24/01/2011 ,Basic Grants - Trade Show Access Programme,UK Trade & Investment - International Sectors Group,BRITISH PIG ASSOCIATION,141060,2800.00 ,
UK Trade and Investment,UK Trade and Investment,24/01/2011 ,Sponsors Grants - Trade Show Access Programme,UK Trade & Investment - International Sectors Group,BRITISH PIG ASSOCIATION,141063,470.00 ,
UK Trade and Investment,UK Trade and Investment,25/01/2011 ,Scheme Management Charges - ,UK Trade & Investment - Defence and Security Organisation,AFRICAN BUSINESS ACCESS UK LTD,141308,7943.71 ,
UK Trade and Investment,UK Trade and Investment,25/01/2011 ,Telecommunications - International Business Specialists,UK Trade & Investment - International Sectors Group,VODAFONE LTD,141357,6.97 ,
UK Trade and Investment,UK Trade and Investment,25/01/2011 ,Telecommunications - International Business Specialists,UK Trade & Investment - International Sectors Group,VODAFONE LTD,141357,47.38 ,
UK Trade and Investment,UK Trade and Investment,25/01/2011 ,Telecommunications - International Business Specialists,UK Trade & Investment - International Sectors Group,VODAFONE LTD,141357,173.04 ,
UK Trade and Investment,UK Trade and Investment,25/01/2011 ,Telecommunications - International Business Specialists,UK Trade & Investment - International Sectors Group,VODAFONE LTD,141357,0.22 ,
UK Trade and Investment,UK Trade and Investment,25/01/2011 ,Scheme Management Charges - International Trade Team Contracting,UK Trade & Investment - Regional Directorate,MEDILINK (YORKSHIRE AND HUMBER) LTD,141023,7387.00 ,648238808
UK Trade and Investment,UK Trade and Investment,25/01/2011 ,Catering - Inward Investment Events,UK Trade & Investment - Business Group,SHIVA HOTELS LTD (RAMADA HOTEL AND SUITES LONDON DOCKLANDS),141269,2494.89 ,
UK Trade and Investment,UK Trade and Investment,25/01/2011 ,Research and Development Costs - Inward Investment Research,UK Trade & Investment - Business Group,FUSE 8 LTD,141281,300.00 ,734613148
UK Trade and Investment,UK Trade and Investment,25/01/2011 ,Research and Development Costs - Inward Investment Research,UK Trade & Investment - Business Group,FUSE 8 LTD,141284,3261.00 ,734613148
UK Trade and Investment,UK Trade and Investment,25/01/2011 ,Travel and Subsistence O'seas - Market Visit Scheme,UK Trade & Investment - Regional Directorate,COLLYER BRISTOW SOLICITORS,141306,600.00 ,
UK Trade and Investment,UK Trade and Investment,25/01/2011 ,Travel and Subsistence O'seas - Market Visit Scheme,UK Trade & Investment - Regional Directorate,NAAS LTD,141314,325.00 ,
UK Trade and Investment,UK Trade and Investment,25/01/2011 ,Fees and Charges - Overseas Market Introduction Service,UK Trade & Investment - Regional Directorate,ENDEAVOUR INTERNATIONAL LTD,141271,851.06 ,
UK Trade and Investment,UK Trade and Investment,25/01/2011 ,Scheme Management Charges - Passport Business Development Credits,UK Trade & Investment - Regional Directorate,BENCHMARK SPORT HOLDINGS LTD,140931,956.25 ,
UK Trade and Investment,UK Trade and Investment,25/01/2011 ,Scheme Management Charges - Passport Business Development Credits,UK Trade & Investment - Regional Directorate,SELADIS BIO LTD,140960,294.87 ,
UK Trade and Investment,UK Trade and Investment,25/01/2011 ,Scheme Management Charges - Passport Business Development Credits,UK Trade & Investment - Regional Directorate,SALAMON & SEABER LTD,140994,676.50 ,
UK Trade and Investment,UK Trade and Investment,25/01/2011 ,Scheme Management Charges - Passport Business Development Credits,UK Trade & Investment - Regional Directorate,MORELLIS GELATO LONDON (ONE) LTD,141018,400.02 ,
UK Trade and Investment,UK Trade and Investment,25/01/2011 ,Scheme Management Charges - Passport Business Development Credits,UK Trade & Investment - Regional Directorate,MORELLIS GELATO LONDON (ONE) LTD,141018,440.00 ,
UK Trade and Investment,UK Trade and Investment,25/01/2011 ,Scheme Management Charges - Passport Business Development Credits,UK Trade & Investment - Regional Directorate,CAMBFIX LTD,141019,1486.98 ,
UK Trade and Investment,UK Trade and Investment,25/01/2011 ,Scheme Management Charges - Passport Business Development Credits,UK Trade & Investment - Regional Directorate,JENKA LTD,141020,1048.25 ,
UK Trade and Investment,UK Trade and Investment,25/01/2011 ,Scheme Management Charges - Passport Business Development Credits,UK Trade & Investment - Regional Directorate,WIN MARKETING (UK) LTD,505100,237.50 ,
UK Trade and Investment,UK Trade and Investment,25/01/2011 ,Scheme Management Charges - Passport Business Development Credits,UK Trade & Investment - Regional Directorate,WIN MARKETING (UK) LTD,505100,1262.50 ,
UK Trade and Investment,UK Trade and Investment,25/01/2011 ,Scheme Management Charges - Passport Business Development Credits,UK Trade & Investment - Regional Directorate,DAIRY PARTNERS UK LTD,505101,1500.00 ,
UK Trade and Investment,UK Trade and Investment,25/01/2011 ,Scheme Management Charges - Passport Business Development Credits,UK Trade & Investment - Regional Directorate,UVE LTD,505102,1250.00 ,
UK Trade and Investment,UK Trade and Investment,25/01/2011 ,Scheme Management Charges - Passport Business Development Credits,UK Trade & Investment - Regional Directorate,CHEW TV CIC LTD T/A CHEW TV NETWORK,505103,478.25 ,
UK Trade and Investment,UK Trade and Investment,25/01/2011 ,Event Management - Sector Events - Abroad,UK Trade & Investment - Regional Directorate,ANNE RITCHIE CONSULTANCY LTD,140839,6191.82 ,
UK Trade and Investment,UK Trade and Investment,25/01/2011 ,Design Services - Sector Events - UK,UK Trade & Investment - International Sectors Group,ACUMEN DESIGN CONSULTANCY LTD,141432,250.00 ,843441339
UK Trade and Investment,UK Trade and Investment,25/01/2011 ,Event Management - Sector Events - UK,UK Trade & Investment - International Sectors Group,BRITISH WATER,141274,500.00 ,627598886
UK Trade and Investment,UK Trade and Investment,25/01/2011 ,Basic Grants - SESA Solo Support Scheme,UK Trade & Investment - International Sectors Group,GOLDEN LEAVES LTD,141434,1000.00 ,
UK Trade and Investment,UK Trade and Investment,25/01/2011 ,Basic Grants - SESA Solo Support Scheme,UK Trade & Investment - International Sectors Group,POINTOOLS LTD,141435,1000.00 ,
UK Trade and Investment,UK Trade and Investment,25/01/2011 ,Basic Grants - SESA Solo Support Scheme,UK Trade & Investment - International Sectors Group,PRECISION PARTS UK LTD,141436,1000.00 ,
UK Trade and Investment,UK Trade and Investment,25/01/2011 ,Basic Grants - SESA Solo Support Scheme,UK Trade & Investment - International Sectors Group,THE PROMOTIONAL MIX LTD T/A THE LEATHER BUSINESS,141437,1000.00 ,
UK Trade and Investment,UK Trade and Investment,25/01/2011 ,Basic Grants - SESA Solo Support Scheme,UK Trade & Investment - International Sectors Group,OPTICAL METROLOGY SERVICES LTD,141440,1000.00 ,
UK Trade and Investment,UK Trade and Investment,25/01/2011 ,Basic Grants - SESA Solo Support Scheme,UK Trade & Investment - International Sectors Group,UK FILTER,141449,1000.00 ,
UK Trade and Investment,UK Trade and Investment,25/01/2011 ,Basic Grants - SESA Solo Support Scheme,UK Trade & Investment - International Sectors Group,ASMAG UK LTD,141451,1000.00 ,
UK Trade and Investment,UK Trade and Investment,25/01/2011 ,Design Services - Trade Marketing Events,UK Trade & Investment - Marketing Directorate,CLEARVIEW IMAGING SERVICES LTD,141264,400.00 ,
UK Trade and Investment,UK Trade and Investment,25/01/2011 ,Design Services - Trade Marketing Events,UK Trade & Investment - Marketing Directorate,CLEARVIEW IMAGING SERVICES LTD,141266,315.00 ,
UK Trade and Investment,UK Trade and Investment,25/01/2011 ,Display Materials/Signage - Trade Marketing Events,UK Trade & Investment - Marketing Directorate,CLEARVIEW IMAGING SERVICES LTD,141454,26700.00 ,
UK Trade and Investment,UK Trade and Investment,25/01/2011 ,Stand Construction Costs - Trade Marketing Events,UK Trade & Investment - Marketing Directorate,CLEARVIEW IMAGING SERVICES LTD,141455,10000.00 ,
UK Trade and Investment,UK Trade and Investment,25/01/2011 ,Storage costs - Trade Marketing Events,UK Trade & Investment - Marketing Directorate,CLEARVIEW IMAGING SERVICES LTD,141453,1950.00 ,
UK Trade and Investment,UK Trade and Investment,25/01/2011 ,Venue Hire - Trade Marketing Events,UK Trade & Investment - Regional Directorate,SODEXO LTD T/A SODEXO PRESTIGE,141448,281.25 ,
UK Trade and Investment,UK Trade and Investment,25/01/2011 ,Travel and Subsistence UK - UKTI Corporate Marketing,UK Trade & Investment - Marketing Directorate,"Personal Expense, Name Witheld",505108,82.73 ,
UK Trade and Investment,UK Trade and Investment,26/01/2011 ,Scheme Management Charges - Attracting Global Entrepreneurs,UK Trade & Investment - Business Group,PERA INNOVATION LTD,141468,120365.81 ,610 5468 64
UK Trade and Investment,UK Trade and Investment,26/01/2011 ,Event Management - Development Business,UK Trade & Investment - International Sectors Group,INTERNATIONAL AGRI-TECHNOLOGY CENTRE LTD (IATC),141493,23067.18 ,
UK Trade and Investment,UK Trade and Investment,26/01/2011 ,CDRoms/Offline Electronic publications - Gateway to Global Growth,UK Trade & Investment - Regional Directorate,TIMELESS MUSIC PROJECT LTD,141465,3200.00 ,
UK Trade and Investment,UK Trade and Investment,26/01/2011 ,Event Management - Gateway to Global Growth,UK Trade & Investment - Regional Directorate,CITYZONE LTD,141481,550.00 ,
UK Trade and Investment,UK Trade and Investment,26/01/2011 ,Travel and Subsistence O'seas - Gateway to Global Growth,UK Trade & Investment - Regional Directorate,TELLEMACHUS LTD,141488,1000.00 ,
UK Trade and Investment,UK Trade and Investment,26/01/2011 ,Scheme Management Charges - International Trade Team Contracting,UK Trade & Investment - Regional Directorate,CHAMBERLINK LTD T/A BUSINESS SUPPORT SOLUTIONS,141507,247595.81 ,
UK Trade and Investment,UK Trade and Investment,26/01/2011 ,Scheme Management Charges - Inward Investment Research,UK Trade & Investment - Business Group,PA CONSULTING GROUP LTD,141456,18394.23 ,238535057
UK Trade and Investment,UK Trade and Investment,26/01/2011 ,Travel and Subsistence O'seas - Market Visit Scheme,UK Trade & Investment - Regional Directorate,RAPITA SYSTEMS LTD,141472,860.00 ,
UK Trade and Investment,UK Trade and Investment,26/01/2011 ,Travel and Subsistence O'seas - Market Visit Scheme,UK Trade & Investment - Regional Directorate,RAPITA SYSTEMS LTD,141472,120.00 ,
UK Trade and Investment,UK Trade and Investment,26/01/2011 ,Travel and Subsistence O'seas - Market Visit Scheme,UK Trade & Investment - Regional Directorate,EVOLVE CREATIVE LTD,141485,550.00 ,
UK Trade and Investment,UK Trade and Investment,26/01/2011 ,Travel and Subsistence O'seas - Market Visit Scheme,UK Trade & Investment - Regional Directorate,FUN FOODS 4 ALL LTD,141490,500.00 ,
UK Trade and Investment,UK Trade and Investment,26/01/2011 ,Speakers fees - NINJ Sector Events,UK Trade & Investment - International Sectors Group,MOBILE MONDAY LTD,141469,2350.00 ,928671782
UK Trade and Investment,UK Trade and Investment,26/01/2011 ,Telecommunications - Passport Development & Events,UK Trade & Investment - Regional Directorate,IPC MEDIA LTD,141483,60.00 ,GB646150645
UK Trade and Investment,UK Trade and Investment,26/01/2011 ,Event Management - Sector Events - Abroad,UK Trade & Investment - International Sectors Group,RIBA HOLDINGS LTD,141458,7500.00 ,232 351 891
UK Trade and Investment,UK Trade and Investment,26/01/2011 ,Event Management - Sector Events - UK,UK Trade & Investment - International Sectors Group,THE KENSINGTON HOTEL,141476,675.00 ,N/A
UK Trade and Investment,UK Trade and Investment,26/01/2011 ,Event Management - Sector Events - UK,UK Trade & Investment - International Sectors Group,THE KENSINGTON HOTEL,141477,675.00 ,N/A
UK Trade and Investment,UK Trade and Investment,26/01/2011 ,Basic Grants - SESA Solo Support Scheme,UK Trade & Investment - International Sectors Group,PHARMACEUTICAL DEVELOPMENT SERVICES LTD,141447,1000.00 ,
UK Trade and Investment,UK Trade and Investment,26/01/2011 ,Basic Grants - SESA Solo Support Scheme,UK Trade & Investment - International Sectors Group,APPLIED MARKET INFORMATION LTD,141462,1000.00 ,
UK Trade and Investment,UK Trade and Investment,26/01/2011 ,Basic Grants - SESA Solo Support Scheme,UK Trade & Investment - International Sectors Group,CROMWELL WOOD ESTATE COMPANY LTD,141463,1000.00 ,
UK Trade and Investment,UK Trade and Investment,26/01/2011 ,Basic Grants - SESA Solo Support Scheme,UK Trade & Investment - International Sectors Group,TRAKI-ISKI LTD T/A CYBAMAN TECHNOLOGIES,141478,1000.00 ,
UK Trade and Investment,UK Trade and Investment,26/01/2011 ,Basic Grants - SESA Solo Support Scheme,UK Trade & Investment - International Sectors Group,MARSTON CONSULTING LTD (T/A CORPORATE CLOTHING DIRECTOR-E.COM,141479,1000.00 ,
UK Trade and Investment,UK Trade and Investment,26/01/2011 ,Basic Grants - SESA Solo Support Scheme,UK Trade & Investment - International Sectors Group,FLEXIBLE MEDICAL PACKAGING LTD,141480,1000.00 ,
UK Trade and Investment,UK Trade and Investment,26/01/2011 ,Basic Grants - SESA Solo Support Scheme,UK Trade & Investment - International Sectors Group,TURNKEY CONSULTING (UK) LTD,141504,1000.00 ,
UK Trade and Investment,UK Trade and Investment,26/01/2011 ,Basic Grants - SESA Solo Support Scheme,UK Trade & Investment - International Sectors Group,DAVIES ODELL LTD,141505,1000.00 ,
UK Trade and Investment,UK Trade and Investment,26/01/2011 ,Basic Grants - SESA Solo Support Scheme,UK Trade & Investment - International Sectors Group,REGENESIS UK LTD,141506,1000.00 ,
UK Trade and Investment,UK Trade and Investment,26/01/2011 ,Scheme Management Charges - Trade Development External Advisers,UK Trade & Investment - International Sectors Group,PA CONSULTING GROUP LTD,141494,10389.47 ,238535057
UK Trade and Investment,UK Trade and Investment,26/01/2011 ,Scheme Management Charges - Trade Development External Advisers,UK Trade & Investment - International Sectors Group,PA CONSULTING GROUP LTD,141495,7717.55 ,238535057
UK Trade and Investment,UK Trade and Investment,26/01/2011 ,Scheme Management Charges - Trade Development External Advisers,UK Trade & Investment - International Sectors Group,PA CONSULTING GROUP LTD,141497,31258.28 ,238535057
UK Trade and Investment,UK Trade and Investment,26/01/2011 ,Scheme Management Charges - Trade Development External Advisers,UK Trade & Investment - International Sectors Group,PA CONSULTING GROUP LTD,141499,5327.94 ,238535057
UK Trade and Investment,UK Trade and Investment,26/01/2011 ,Scheme Management Charges - Trade Development External Advisers,UK Trade & Investment - International Sectors Group,PA CONSULTING GROUP LTD,141500,92534.43 ,238535057
UK Trade and Investment,UK Trade and Investment,26/01/2011 ,Event Management - Trade Marketing Events,UK Trade & Investment - Marketing Directorate,BRACKEN PRESENTATIONS LTD,141482,6057.50 ,
UK Trade and Investment,UK Trade and Investment,26/01/2011 ,Venue Hire - Trade Marketing Events,UK Trade & Investment - Regional Directorate,SOMERSET COUNTY CRICKET CLUB LTD,141503,868.50 ,
UK Trade and Investment,UK Trade and Investment,26/01/2011 ,Venue Hire - Trade Marketing Events,UK Trade & Investment - Regional Directorate,KHL POOLE LTD T/A HOLIDAY INN EXPRESS POOLE,141508,125.00 ,
UK Trade and Investment,UK Trade and Investment,26/01/2011 ,Photographic Services - Trade Marketing Publication,UK Trade & Investment - Marketing Directorate,CRUZ IT LTD T/A CIT DIGITAL,141484,4759.90 ,
UK Trade and Investment,UK Trade and Investment,26/01/2011 ,Event Management - Trade Marketing Publicity,UK Trade & Investment - Marketing Directorate,ARIADNE CAPITAL LTD,141461,17000.00 ,766 1907 05
UK Trade and Investment,UK Trade and Investment,26/01/2011 ,Online Services charges - Trade Marketing Publicity,UK Trade & Investment - International Sectors Group,KEPIER & COMPANY LTD,141457,2250.00 ,
UK Trade and Investment,UK Trade and Investment,26/01/2011 ,Basic Grants - Trade Show Access Programme,UK Trade & Investment - International Sectors Group,INTERNATIONAL WIRE AND MACHINERY ASSOCIATION,141459,1400.00 ,240491483
UK Trade and Investment,UK Trade and Investment,26/01/2011 ,Basic Grants - Trade Show Access Programme,UK Trade & Investment - International Sectors Group,ENGINEERING INDUSTRIES ASSOCIATION,141466,9800.00 ,394513241
UK Trade and Investment,UK Trade and Investment,26/01/2011 ,Basic Grants - Trade Show Access Programme,UK Trade & Investment - International Sectors Group,MOTORSPORT INDUSTRY ASSOCIATION [MIA],141473,19600.00 ,
UK Trade and Investment,UK Trade and Investment,26/01/2011 ,Sponsors Grants - Trade Show Access Programme,UK Trade & Investment - International Sectors Group,INTERNATIONAL WIRE AND MACHINERY ASSOCIATION,141460,240.00 ,240491483
UK Trade and Investment,UK Trade and Investment,26/01/2011 ,Sponsors Grants - Trade Show Access Programme,UK Trade & Investment - International Sectors Group,MOTORSPORT INDUSTRY ASSOCIATION [MIA],141474,9360.00 ,
UK Trade and Investment,UK Trade and Investment,27/01/2011 ,Training - General - Gateway to Global Growth,UK Trade & Investment - Regional Directorate,GJ INTERNATIONAL LTD,141511,950.00 ,
UK Trade and Investment,UK Trade and Investment,27/01/2011 ,Travel and Subsistence O'seas - Gateway to Global Growth,UK Trade & Investment - Regional Directorate,DEEHURST LTD T/A TRAVELEADS,141524,194.00 ,
UK Trade and Investment,UK Trade and Investment,27/01/2011 ,Venue Hire - Gateway to Global Growth,UK Trade & Investment - Regional Directorate,DEEHURST LTD T/A TRAVELEADS,141525,812.20 ,
UK Trade and Investment,UK Trade and Investment,27/01/2011 ,Travel and Subsistence UK - Inward Investment Events,UK Trade & Investment - Business Group,"Personal Expense, Name Witheld",505115,77.21 ,
UK Trade and Investment,UK Trade and Investment,27/01/2011 ,Travel and Subsistence UK - Inward Investment Events,UK Trade & Investment - Business Group,"Personal Expense, Name Witheld",505116,15.00 ,
UK Trade and Investment,UK Trade and Investment,27/01/2011 ,Other Transportation Hire - Inward Investment Publicity,UK Trade & Investment - Marketing Directorate,SWANS TRAVEL LTD,141552,195.00 ,305777546
UK Trade and Investment,UK Trade and Investment,27/01/2011 ,Other Transportation Hire - Inward Investment Publicity,UK Trade & Investment - Marketing Directorate,SWIFT VALLEY COACHES,141568,375.00 ,
UK Trade and Investment,UK Trade and Investment,27/01/2011 ,Travel and Subsistence O'seas - Market Visit Scheme,UK Trade & Investment - Regional Directorate,FLOOD ARK LTD,140992,250.00 ,
UK Trade and Investment,UK Trade and Investment,27/01/2011 ,Travel and Subsistence O'seas - Market Visit Scheme,UK Trade & Investment - Regional Directorate,GWE BUSINESS WEST LTD,141509,200.00 ,
UK Trade and Investment,UK Trade and Investment,27/01/2011 ,Travel and Subsistence O'seas - Market Visit Scheme,UK Trade & Investment - Regional Directorate,GWE BUSINESS WEST LTD,141509,200.00 ,
UK Trade and Investment,UK Trade and Investment,27/01/2011 ,Travel and Subsistence O'seas - Market Visit Scheme,UK Trade & Investment - Regional Directorate,GWE BUSINESS WEST LTD,141509,200.00 ,
UK Trade and Investment,UK Trade and Investment,27/01/2011 ,Travel and Subsistence O'seas - Market Visit Scheme,UK Trade & Investment - Regional Directorate,GWE BUSINESS WEST LTD,141509,500.00 ,
UK Trade and Investment,UK Trade and Investment,27/01/2011 ,Travel and Subsistence O'seas - Market Visit Scheme,UK Trade & Investment - Regional Directorate,GWE BUSINESS WEST LTD,141509,650.00 ,
UK Trade and Investment,UK Trade and Investment,27/01/2011 ,Travel and Subsistence O'seas - Market Visit Scheme,UK Trade & Investment - Regional Directorate,GWE BUSINESS WEST LTD,141509,500.00 ,
UK Trade and Investment,UK Trade and Investment,27/01/2011 ,Travel and Subsistence O'seas - Market Visit Scheme,UK Trade & Investment - Regional Directorate,GWE BUSINESS WEST LTD,141509,550.00 ,
UK Trade and Investment,UK Trade and Investment,27/01/2011 ,Travel and Subsistence O'seas - Market Visit Scheme,UK Trade & Investment - Regional Directorate,GWE BUSINESS WEST LTD,141509,750.00 ,
UK Trade and Investment,UK Trade and Investment,27/01/2011 ,Travel and Subsistence O'seas - Market Visit Scheme,UK Trade & Investment - Regional Directorate,GWE BUSINESS WEST LTD,141509,200.00 ,
UK Trade and Investment,UK Trade and Investment,27/01/2011 ,Travel and Subsistence O'seas - Market Visit Scheme,UK Trade & Investment - Regional Directorate,ITALIAN BEVERAGE CO LTD,141512,740.00 ,
UK Trade and Investment,UK Trade and Investment,27/01/2011 ,Travel and Subsistence O'seas - Market Visit Scheme,UK Trade & Investment - Regional Directorate,SAREUM LTD,141517,750.00 ,
UK Trade and Investment,UK Trade and Investment,27/01/2011 ,Travel and Subsistence O'seas - Market Visit Scheme,UK Trade & Investment - Regional Directorate,Woods Hardwick Ltd,141518,450.00 ,
UK Trade and Investment,UK Trade and Investment,27/01/2011 ,Travel and Subsistence O'seas - Market Visit Scheme,UK Trade & Investment - Regional Directorate,ARTEVEA DIGITAL LTD,141520,550.00 ,
UK Trade and Investment,UK Trade and Investment,27/01/2011 ,Travel and Subsistence O'seas - Market Visit Scheme,UK Trade & Investment - Regional Directorate,BLUEAID LTD,141523,650.00 ,
UK Trade and Investment,UK Trade and Investment,27/01/2011 ,Travel and Subsistence O'seas - Market Visit Scheme,UK Trade & Investment - Regional Directorate,BLUEAID LTD,141523,110.00 ,
UK Trade and Investment,UK Trade and Investment,27/01/2011 ,Travel and Subsistence O'seas - Market Visit Scheme,UK Trade & Investment - Regional Directorate,DEEHURST LTD T/A TRAVELEADS,141526,484.70 ,
UK Trade and Investment,UK Trade and Investment,27/01/2011 ,Travel and Subsistence O'seas - Market Visit Scheme,UK Trade & Investment - Regional Directorate,7 BEDFORD ROW,141547,700.00 ,
UK Trade and Investment,UK Trade and Investment,27/01/2011 ,Travel and Subsistence O'seas - Market Visit Scheme,UK Trade & Investment - Regional Directorate,FOCAL LTD,141558,550.00 ,
UK Trade and Investment,UK Trade and Investment,27/01/2011 ,Travel and Subsistence O'seas - Market Visit Scheme,UK Trade & Investment - Regional Directorate,EUROLEC COMPONENTS LTD,141559,200.00 ,
UK Trade and Investment,UK Trade and Investment,27/01/2011 ,Travel and Subsistence O'seas - Market Visit Scheme,UK Trade & Investment - Regional Directorate,YOGAMASTI,141560,200.00 ,
UK Trade and Investment,UK Trade and Investment,27/01/2011 ,Travel and Subsistence O'seas - Market Visit Scheme,UK Trade & Investment - Regional Directorate,AUTOCLIMATE LTD,141561,500.00 ,
UK Trade and Investment,UK Trade and Investment,27/01/2011 ,Travel and Subsistence O'seas - Market Visit Scheme,UK Trade & Investment - Regional Directorate,RB EXPORT COMPANY LTD,141577,575.00 ,
UK Trade and Investment,UK Trade and Investment,27/01/2011 ,Travel and Subsistence O'seas - Market Visit Scheme,UK Trade & Investment - Regional Directorate,RB EXPORT COMPANY LTD,141577,140.00 ,
UK Trade and Investment,UK Trade and Investment,27/01/2011 ,IT Managed Service Contracts - Online,UK Trade & Investment - Marketing Directorate,CAKE SOLUTIONS LTD,141569,1152.00 ,
UK Trade and Investment,UK Trade and Investment,27/01/2011 ,IT Managed Service Contracts - Online,UK Trade & Investment - Marketing Directorate,CAKE SOLUTIONS LTD,141571,150.00 ,
UK Trade and Investment,UK Trade and Investment,27/01/2011 ,Design Services - Outward missions,UK Trade & Investment - International Sectors Group,ACUMEN DESIGN CONSULTANCY LTD,141433,288.00 ,843441339
UK Trade and Investment,UK Trade and Investment,27/01/2011 ,Design Services - Outward missions,UK Trade & Investment - International Sectors Group,ACUMEN DESIGN CONSULTANCY LTD,141452,210.00 ,843441339
UK Trade and Investment,UK Trade and Investment,27/01/2011 ,Scheme Management Charges - Passport Business Development Credits,UK Trade & Investment - Regional Directorate,BRISTOL UROLOGICAL INSTITUTE (BIOMED),141129,901.35 ,
UK Trade and Investment,UK Trade and Investment,27/01/2011 ,Scheme Management Charges - Passport Business Development Credits,UK Trade & Investment - Regional Directorate,ROSALIND MCCOURT T/A MCCOURTS JEWELLERY,141386,422.00 ,
UK Trade and Investment,UK Trade and Investment,27/01/2011 ,Scheme Management Charges - Passport Business Development Credits,UK Trade & Investment - Regional Directorate,ROSALIND MCCOURT T/A MCCOURTS JEWELLERY,141386,497.50 ,
UK Trade and Investment,UK Trade and Investment,27/01/2011 ,Scheme Management Charges - Passport Business Development Credits,UK Trade & Investment - Regional Directorate,THE RENOVATION STORE LTD,141387,1500.00 ,
UK Trade and Investment,UK Trade and Investment,27/01/2011 ,Scheme Management Charges - Passport Business Development Credits,UK Trade & Investment - Regional Directorate,AVISTRON CHEMISTRY SERVICES LTD,141388,1288.86 ,
UK Trade and Investment,UK Trade and Investment,27/01/2011 ,Scheme Management Charges - Passport Business Development Credits,UK Trade & Investment - Regional Directorate,MARLUX MEDICAL LTD,141389,1500.00 ,
UK Trade and Investment,UK Trade and Investment,27/01/2011 ,Scheme Management Charges - Passport Business Development Credits,UK Trade & Investment - Regional Directorate,LAZARUS MOBILITY LTD,141390,96.14 ,
UK Trade and Investment,UK Trade and Investment,27/01/2011 ,Scheme Management Charges - Passport Business Development Credits,UK Trade & Investment - Regional Directorate,FFP PACKAGING SOLUTIONS LTD,141391,878.66 ,
UK Trade and Investment,UK Trade and Investment,27/01/2011 ,Sponsorship - Passport Development & Events,UK Trade & Investment - Regional Directorate,EAST MIDLANDS INTERNATIONAL TRADE ASSOCIATION,141550,1344.00 ,
UK Trade and Investment,UK Trade and Investment,27/01/2011 ,Training - General - Passport Development & Events,UK Trade & Investment - Regional Directorate,THE BRITISH CHAMBERS OF COMMERCE,141513,1372.80 ,243180781
UK Trade and Investment,UK Trade and Investment,27/01/2011 ,Training - General - Passport Development & Events,UK Trade & Investment - Regional Directorate,GJ INTERNATIONAL LTD,141516,950.00 ,
UK Trade and Investment,UK Trade and Investment,27/01/2011 ,Training - General - Passport Development & Events,UK Trade & Investment - Regional Directorate,LEARNING IMPACT INTERNATIONAL LTD,141521,2452.00 ,
UK Trade and Investment,UK Trade and Investment,27/01/2011 ,Training - General - Passport Development & Events,UK Trade & Investment - Regional Directorate,LEARNING IMPACT INTERNATIONAL LTD,141521,0.50 ,
UK Trade and Investment,UK Trade and Investment,27/01/2011 ,Venue Hire - Passport Development & Events,UK Trade & Investment - Regional Directorate,DE VERE DARESBURY PARK HOTEL,141557,1075.00 ,151651288
UK Trade and Investment,UK Trade and Investment,27/01/2011 ,Event Management - Sector Events - Abroad,UK Trade & Investment - International Sectors Group,FURNEAUX STEWART DESIGN LTD,141219,97.17 ,
UK Trade and Investment,UK Trade and Investment,27/01/2011 ,Event Management - Sector Events - UK,UK Trade & Investment - International Sectors Group,ENERGY INDUSTRIES COUNCIL,141549,4210.00 ,235882637
UK Trade and Investment,UK Trade and Investment,27/01/2011 ,Event Management - Sector Events - UK,UK Trade & Investment - International Sectors Group,ENERGY INDUSTRIES COUNCIL,141549,2161.00 ,235882637
UK Trade and Investment,UK Trade and Investment,27/01/2011 ,Catering - Security Events,UK Trade & Investment - Defence and Security Organisation,METROPOLITAN POLICE AUTHORITY,140774,299.00 ,
UK Trade and Investment,UK Trade and Investment,27/01/2011 ,Basic Grants - SESA Solo Support Scheme,UK Trade & Investment - International Sectors Group,PRODUCT EXPECTATIONS LTD,141570,1000.00 ,
UK Trade and Investment,UK Trade and Investment,27/01/2011 ,Basic Grants - SESA Solo Support Scheme,UK Trade & Investment - International Sectors Group,CLIMAVENT SYSTEMS LTD,141572,1000.00 ,
